Workbook

Sheet Controls & Results
F1: ISO-NE Public
B2: Instructions | F2: Draft Values - Subject to Change
B3: 1. Choose reference technology from drop-down below
B4: 2. Choose Market Proposal
B5: 3. Click the "Run Model" button below. Macro MUST be run to get results.
B7: Choose reference technology & market proposals:
B8: Reference Technology | D8: Solar - ORTP
B9: FRM Sunset or With FRM | D9: With FRM
B10: ESI Proposal | D10: NEPOOL Proposal
B12: Run model:
B20: Summary of Results: | C20: =Assumptions!D3 -> ORTP
B22: Technology: | C22: ='Controls & Results'!$D$8 -> Solar - ORTP
B24: 2025$ | C24: NPV | D24: $/kW-yr | E24: $/kW-mo
B25: Expenses
B26: Fixed | C26: =Model!$C$19 -> 7735755.826 | D26: =-PMT(Assumptions!$D$39,20,C26)/(Assumptions!$D$15*1000) -> 31.89575064 | E26: =D26/12 -> 2.65797922
B27: Tax | C27: =Model!$C$23 -> -2844137.92 | D27: =-PMT(Assumptions!$D$39,20,C27)/(Assumptions!$D$15*1000) -> -11.72683264 | E27: =D27/12 -> -0.9772360531
B28: Install Costs | C28: =-Model!$C$27 -> 31625641.15 | D28: =-PMT(Assumptions!$D$39,20,C28)/(Assumptions!$D$15*1000) -> 130.3975445 | E28: =D28/12 -> 10.86646204
B29: Gross CONE | C29: =SUM(C26:C28) -> 36517259.06 | D29: =SUM(D26:D28) -> 150.5664625 | E29: =SUM(E26:E28) -> 12.54720521
B31: Revenues
B32: PFP | C32: =Model!$C$6 -> 1041337.779 | D32: =-PMT(Assumptions!$D$39,20,C32)/(Assumptions!$D$15*1000) -> 4.293601153 | E32: =D32/12 -> 0.3578000961
B33: Scarcity | C33: =Model!$C$7 -> 1629201.803 | D33: =-PMT(Assumptions!$D$39,20,C33)/(Assumptions!$D$15*1000) -> 6.71745795 | E33: =D33/12 -> 0.5597881625
B34: E&AS | C34: =Model!$C$8 -> 14454926.54 | D34: =-PMT(Assumptions!$D$39,20,C34)/(Assumptions!$D$15*1000) -> 59.5999593 | E34: =D34/12 -> 4.966663275
B35: ESI | C35: =Model!$C$9 -> 32133.05597 | D35: =-PMT(Assumptions!$D$39,20,C35)/(Assumptions!$D$15*1000) -> 0.1324896964 | E35: =D35/12 -> 0.01104080803
B36: REC | C36: =Model!$C$10 -> 10714365.19 | D36: =-PMT(Assumptions!$D$39,20,C36)/(Assumptions!$D$15*1000) -> 44.1770304 | E36: =D36/12 -> 3.6814192
B37: Revenue Offset | C37: =SUM(C32:C36) -> 27871964.36 | D37: =SUM(D32:D36) -> 114.9205385 | E37: =SUM(E32:E36) -> 9.576711542
B39: Net CONE Installed | C39: =C29-C37 -> 8645294.7 | D39: =D29-D37 -> 35.64592397 | E39: =E29-E37 -> 2.970493664
B40: Net CONE Qualified | C40: =C39/Assumptions!$D$17 -> 50263341.28 | D40: =D39/Assumptions!$D$17 -> 207.243744 | E40: =E39/Assumptions!$D$17 -> 17.270312

Sheet Assumptions
B1: Resource Assumptions
C3: CONE or ORTP: | D3: =RIGHT(D4,4) -> ORTP | F3: CONE | G3: CONE | H3: CONE | I3: ORTP | J3: ORTP | K3: ORTP | L3: ORTP | M3: ORTP | N3: ORTP | O3: ORTP
C4: Reference Technology | D4: ='Controls & Results'!D8 -> Solar - ORTP
D5: =MATCH('Controls & Results'!D8,F5:O5,0) -> 8 | F5: CC - CONE | G5: SC - CONE | H5: Aero - CONE | I5: CC - ORTP | J5: SC - ORTP | K5: Onshore Wind - ORTP | L5: Offshore Wind - ORTP | M5: Solar - ORTP | N5: Battery - ORTP | O5: Co-located Resource - ORTP
F6: Combined Cycle | G6: Simple Cycle | H6: Aero | I6: Combined Cycle | J6: Simple Cycle
F7: 7HA 02 Combined Cycle | G7: 7HA 02 Simple Cycle | H7: LM6000 PF+ (2 Units) | I7: 7HA 02 Combined Cycle | J7: 7HA 02 Simple Cycle
B8: Line | C8: Assumption
B9: Plant
B10: =MAX($B$9:B9)+1 -> 1 | C10: Location | D10: =OFFSET(F10,0,D$5-1) -> CT | F10: CT | G10: CT | H10: CT | I10: CT | J10: CT | K10: NH | L10: MA | M10: CT | N10: RI | O10: MA
B11: =MAX($B$9:B10)+1 -> 2 | C11: Fuel Type | D11: Solar | F11: Natural Gas | G11: Natural Gas | H11: Natural Gas | I11: Natural Gas | J11: Natural Gas | K11: Wind | L11: Wind | M11: Solar
B12: =MAX($B$9:B11)+1 -> 3 | C12: Property Tax Rate | D12: 0.01 | F12: 0.0289 | G12: 0.0289 | H12: 0.0289 | I12: 0.01 | J12: 0.01 | K12: 0.01 | L12: 0.01 | M12: 0.01 | N12: 0.01 | O12: 0.01
B13: =MAX($B$9:B12)+1 -> 4 | C13: Insurance (% of Installed Costs) | D13: 0.003 | F13: 0.006 | G13: 0.006 | H13: 0.006 | I13: 0.003 | J13: 0.003 | K13: 0.003 | L13: 0.003 | M13: 0.003 | N13: 0.003 | O13: 0.003
B14: =MAX($B$9:B13)+1 -> 5 | C14: Site Leasing (2025$/acre) | D14: 1500 | F14: 25000 | G14: 25000 | H14: 25000 | I14: 25000 | J14: 25000 | K14: 175 | L14: 7 | M14: 1500 | N14: 150000 | O14: 2850
B15: =MAX($B$9:B14)+1 -> 6 | C15: Plant Capacity (MW) | D15: 20 | F15: 557 | G15: =376 -> 376 | H15: 98 | I15: =F15 -> 557 | J15: =G15 -> 376 | K15: 82.5 | L15: 800 | M15: 20 | N15: 150 | O15: 10
B16: =MAX($B$9:B15)+1 -> 7 | C16: Plant Capacity for REC Calculation (MW) | D16: 20 | K16: =K15 -> 82.5 | L16: =L15 -> 800 | M16: =M15 -> 20 | O16: 5
B17: =MAX($B$9:B16)+1 -> 8 | C17: Qualified Capacity (%) | D17: 0.172 | F17: 0.9 | G17: 0.96 | H17: =G17 -> 0.96 | I17: =F17 -> 0.9 | J17: =G17 -> 0.96 | K17: =K18 -> 0.431 | L17: =L18 -> 0.47 | M17: =M18 -> 0.172 | N17: =129/150 -> 0.86 | O17: =5.15/10 -> 0.515
B18: =MAX($B$9:B17)+1 -> 9 | C18: Capacity Factor (%) | D18: 0.172 | K18: 0.431 | L18: 0.47 | M18: 0.172 | O18: =M18 -> 0.172
B19: =MAX($B$9:B18)+1 -> 10 | C19: Acres | D19: 133 | F19: 15 | G19: 8 | H19: 4.5 | I19: =F19 -> 15 | J19: =G19 -> 8 | K19: 4700 | L19: 75600 | M19: 133 | N19: 10 | O19: 35
B20: =MAX($B$9:B19)+1 -> 11 | C20: REC Price (2025$/MWh) | D20: 29.32 | K20: 29.32 | L20: 29.32 | M20: 29.32 | N20: 0 | O20: 29.32
B21: =MAX($B$9:B20)+1 -> 12 | C21: Investment Tax Credit | D21: 0.1 | F21: 0 | G21: 0 | H21: 0 | I21: 0 | J21: 0 | K21: 0 | L21: 0 | M21: 0.1 | N21: 0 | O21: =$M$21*O22 -> 0.1
B22: =MAX($B$9:B21)+1 -> 13 | C22: Percent of Time Renewable-Charged (%) | D22: 0 | F22: 0 | G22: 0 | H22: 0 | I22: 0 | J22: 0 | K22: 0 | L22: 0 | M22: 0 | N22: 0 | O22: 1
B24: Financial
B25: =MAX($B$9:B24)+1 -> 14 | C25: Economic Life (years) | D25: 20
B26: =MAX($B$9:B25)+1 -> 15 | C26: Tax Depreciation Schedule | D26: =OFFSET(F26,0,D$5-1) -> 5yrMACRS | F26: 20yrMACRS | G26: 15yrMACRS | H26: 15yrMACRS | I26: 20yrMACRS | J26: 15yrMACRS | K26: 5yrMACRS | L26: 5yrMACRS | M26: 5yrMACRS | N26: 7yrMACRS | O26: 5yrMACRS
B27: =MAX($B$9:B26)+1 -> 16 | C27: Bonus Depreciation (%) | D27: =OFFSET(F27,0,D$5-1) -> 0.4 | F27: 0.4 | G27: 0.4 | H27: 0.4 | I27: 0.4 | J27: 0.4 | K27: 0.4 | L27: 0.4 | M27: 0.4 | N27: 0.4 | O27: 0.4
B28: =MAX($B$9:B27)+1 -> 17 | C28: Federal Tax Rate (%) | D28: =OFFSET(F28,0,D$5-1) -> 0.21 | F28: 0.21 | G28: 0.21 | H28: 0.21 | I28: 0.21 | J28: 0.21 | K28: 0.21 | L28: 0.21 | M28: 0.21 | N28: 0.21 | O28: 0.21
B29: =MAX($B$9:B28)+1 -> 18 | C29: State Tax Rate (%) | D29: =OFFSET(F29,0,D$5-1) -> 0.075 | F29: 0.075 | G29: 0.075 | H29: 0.075 | I29: 0.075 | J29: 0.075 | K29: 0.077 | L29: 0.08 | M29: 0.075 | N29: 0.07 | O29: 0.08
B30: =MAX($B$9:B29)+1 -> 19 | C30: Effective Income Tax Rate (%) | D30: =1-(1-D28)*(1-D29) -> 0.26925 | F30: =1-(1-F28)*(1-F29) -> 0.26925 | G30: =1-(1-G28)*(1-G29) -> 0.26925 | H30: 0.26925 | I30: =1-(1-I28)*(1-I29) -> 0.26925 | J30: =1-(1-J28)*(1-J29) -> 0.26925 | K30: =1-(1-K28)*(1-K29) -> 0.27083 | L30: =1-(1-L28)*(1-L29) -> 0.2732 | M30: =1-(1-M28)*(1-M29) -> 0.26925 | N30: =1-(1-N28)*(1-N29) -> 0.2653 | O30: =1-(1-O28)*(1-O29) -> 0.2732
B31: =MAX($B$9:B30)+1 -> 20 | C31: Debt Weight (%) | D31: =OFFSET(F31,0,D$5-1) -> 0.6 | F31: 0.55 | G31: 0.55 | H31: 0.55 | I31: 0.6 | J31: 0.6 | K31: 0.6 | L31: 0.6 | M31: 0.6 | N31: 0.6 | O31: 0.6
B32: =MAX($B$9:B31)+1 -> 21 | C32: Equity Weight (%) | D32: =1-D31 -> 0.4 | F32: =1-F31 -> 0.45 | G32: =1-G31 -> 0.45 | H32: 0.45 | I32: 0.4 | J32: 0.4 | K32: 0.4 | L32: 0.4 | M32: 0.4 | N32: 0.4 | O32: 0.4
B33: =MAX($B$9:B32)+1 -> 22 | C33: Cost of Debt (%) | D33: =OFFSET(F33,0,D$5-1) -> 0.06 | F33: 0.06 | G33: 0.06 | H33: 0.06 | I33: 0.06 | J33: 0.06 | K33: 0.06 | L33: 0.06 | M33: 0.06 | N33: 0.06 | O33: 0.06
B34: =MAX($B$9:B33)+1 -> 23 | C34: After Tax Cost of Debt (%) | D34: =D33*(1-D30) -> 0.043845 | F34: =F33*(1-F30) -> 0.043845 | G34: =G33*(1-G30) -> 0.043845 | H34: 0.043845 | I34: 0.043845 | J34: 0.043845 | K34: 0.0437502 | L34: 0.043608 | M34: 0.043845 | N34: 0.044082 | O34: 0.043608
B35: =MAX($B$9:B34)+1 -> 24 | C35: Cost of Equity (%) | D35: =OFFSET(F35,0,D$5-1) -> 0.12 | F35: 0.13 | G35: 0.13 | H35: 0.13 | I35: 0.12 | J35: 0.12 | K35: 0.12 | L35: 0.12 | M35: 0.12 | N35: 0.12 | O35: 0.12
B36: =MAX($B$9:B35)+1 -> 25 | C36: Annual Inflation Rate (%) | D36: =OFFSET(F36,0,D$5-1) -> 0.02 | F36: 0.02 | G36: 0.02 | H36: 0.02 | I36: 0.02 | J36: 0.02 | K36: 0.02 | L36: 0.02 | M36: 0.02 | N36: 0.02 | O36: 0.02
B37: =MAX($B$9:B36)+1 -> 26 | C37: WACC (%) | D37: =D31*D33+D32*D35 -> 0.084 | F37: =F31*F33+F32*F35 -> 0.0915 | G37: =G31*G33+G32*G35 -> 0.0915 | H37: 0.0915 | I37: 0.084 | J37: 0.084 | K37: 0.084 | L37: 0.084 | M37: 0.084 | N37: 0.084 | O37: 0.084
B38: =MAX($B$9:B37)+1 -> 27 | C38: ATWACC (%) | D38: =(D31*D34)+(D32*D35) -> 0.074307 | F38: =(F31*F34)+(F32*F35) -> 0.08261475 | G38: =(G31*G34)+(G32*G35) -> 0.08261475 | H38: 0.08261475 | I38: 0.074307 | J38: 0.074307 | K38: 0.07425012 | L38: 0.0741648 | M38: 0.074307 | N38: 0.0744492 | O38: 0.0741648
B39: =MAX($B$9:B38)+1 -> 28 | C39: Discount Rate (%) | D39: =(1+D38)/(1+D36)-1 -> 0.05324215686 | E39: Real | F39: =(1+F38)/(1+F36)-1 -> 0.0613870098 | G39: =(1+G38)/(1+G36)-1 -> 0.0613870098 | H39: 0.0613870098 | I39: 0.05324215686 | J39: 0.05324215686 | K39: 0.05318639216 | L39: 0.0531027451 | M39: 0.05324215686 | N39: 0.05338156863 | O39: 0.0531027451
B40: =MAX($B$9:B39)+1 -> 29 | C40: Monthly WACC | D40: =(1+D37)^(1/12)-1 -> 0.006744131841 | E40: Nominal | F40: =(1+F37)^(1/12)-1 -> 0.007322755954 | G40: =(1+G37)^(1/12)-1 -> 0.007322755954 | H40: 0.007322755954 | I40: 0.006744131841 | J40: 0.006744131841 | K40: 0.006744131841 | L40: 0.006744131841 | M40: 0.006744131841 | N40: 0.006744131841 | O40: 0.006744131841
B41: =MAX($B$9:B40)+1 -> 30 | C41: Monthly Inflation Rate | D41: =(1+D36)^(1/12)-1 -> 0.001651581302 | F41: =(1+F36)^(1/12)-1 -> 0.001651581302 | G41: =(1+G36)^(1/12)-1 -> 0.001651581302 | H41: 0.001651581302 | I41: 0.001651581302 | J41: 0.001651581302 | K41: 0.001651581302 | L41: 0.001651581302 | M41: 0.001651581302 | N41: 0.001651581302 | O41: 0.001651581302
B42: =MAX($B$9:B41)+1 -> 31 | C42: Monthly Real WACC (%) | D42: =(1+D40)/(1+D41)-1 -> 0.005084153646 | F42: =(1+F40)/(1+F41)-1 -> 0.00566182369 | G42: =(1+G40)/(1+G41)-1 -> 0.00566182369 | H42: 0.00566182369 | I42: 0.005084153646 | J42: 0.005084153646 | K42: 0.005084153646 | L42: 0.005084153646 | M42: 0.005084153646 | N42: 0.005084153646 | O42: 0.005084153646
B44: Construction
B45: =MAX($B$9:B44)+1 -> 32 | C45: Interest During Construction (%) | D45: =OFFSET(F45,0,D$5-1) -> 0.06 | E45: Nominal | F45: =F33 -> 0.06 | G45: =G33 -> 0.06 | H45: 0.06 | I45: 0.06 | J45: 0.06 | K45: 0.06 | L45: 0.06 | M45: 0.06 | N45: 0.06 | O45: 0.06
B46: =MAX($B$9:B45)+1 -> 33 | C46: Monthly Cost of Debt During Construction | D46: =(1+D45)^(1/12)-1 -> 0.004867550565 | E46: Nominal | F46: =(1+F45)^(1/12)-1 -> 0.004867550565 | G46: =(1+G45)^(1/12)-1 -> 0.004867550565 | H46: 0.004867550565 | I46: 0.004867550565 | J46: 0.004867550565 | K46: 0.004867550565 | L46: 0.004867550565 | M46: 0.004867550565 | N46: 0.004867550565 | O46: 0.004867550565
B47: =MAX($B$9:B46)+1 -> 34 | C47: Construction Months | D47: =OFFSET(F47,0,D$5-1) -> 16 | F47: ='Capital Costs'!B4 -> 28 | G47: ='Capital Costs'!C4 -> 21 | H47: ='Capital Costs'!D4 -> 17 | I47: ='Capital Costs'!E4 -> 28 | J47: ='Capital Costs'!F4 -> 21 | K47: ='Capital Costs'!G4 -> 21 | L47: ='Capital Costs'!H4 -> 48 | M47: ='Capital Costs'!I4 -> 16 | N47: ='Capital Costs'!J4 -> 17 | O47: ='Capital Costs'!K4 -> 11
B49: Capital and O&M
B50: =MAX($B$9:B49)+1 -> 35 | C50: Overnight cost per kW ($ at construction start) | D50: =OFFSET(F50,0,D$5-1) -> 1595.223051 | E50: =TEXT(EDATE(45809,-$D$47),"mmm yyyy")&" $" -> Feb 2024 $ | F50: =INDEX('Capital Costs'!$M$44:$V$44,1,MATCH(Assumptions!F$5,'Capital Costs'!$M$2:$V$2,0)) -> 993.8153047 | G50: =INDEX('Capital Costs'!$M$44:$V$44,1,MATCH(Assumptions!G$5,'Capital Costs'!$M$2:$V$2,0)) -> 780.8659079 | H50: =INDEX('Capital Costs'!$M$44:$V$44,1,MATCH(Assumptions!H$5,'Capital Costs'!$M$2:$V$2,0)) -> 1787.427991 | I50: =INDEX('Capital Costs'!$M$44:$V$44,1,MATCH(Assumptions!I$5,'Capital Costs'!$M$2:$V$2,0)) -> 988.0444775 | J50: =INDEX('Capital Costs'!$M$44:$V$44,1,MATCH(Assumptions!J$5,'Capital Costs'!$M$2:$V$2,0)) -> 773.6606695 | K50: =INDEX('Capital Costs'!$M$44:$V$44,1,MATCH(Assumptions!K$5,'Capital Costs'!$M$2:$V$2,0)) -> 2192.856337 | L50: =INDEX('Capital Costs'!$M$44:$V$44,1,MATCH(Assumptions!L$5,'Capital Costs'!$M$2:$V$2,0)) -> 5974.752501 | M50: =INDEX('Capital Costs'!$M$44:$V$44,1,MATCH(Assumptions!M$5,'Capital Costs'!$M$2:$V$2,0)) -> 1595.223051 | N50: =INDEX('Capital Costs'!$M$44:$V$44,1,MATCH(Assumptions!N$5,'Capital Costs'!$M$2:$V$2,0)) -> 973.1603557 | O50: =INDEX('Capital Costs'!$M$44:$V$44,1,MATCH(Assumptions!O$5,'Capital Costs'!$M$2:$V$2,0)) -> 1503.150051
B51: =MAX($B$9:B50)+1 -> 36 | C51: Non-Depreciable cost per kW ($ at construction start) | D51: =OFFSET(F51,0,D$5-1) -> 12.84860662 | E51: =TEXT(EDATE(45809,-$D$47),"mmm yyyy")&" $" -> Feb 2024 $ | F51: =INDEX('Capital Costs'!$M$47:$V$47,1,MATCH(Assumptions!F$5,'Capital Costs'!$M$2:$V$2,0)) -> 18.83874812 | G51: =INDEX('Capital Costs'!$M$47:$V$47,1,MATCH(Assumptions!G$5,'Capital Costs'!$M$2:$V$2,0)) -> 21.71107727 | H51: =INDEX('Capital Costs'!$M$47:$V$47,1,MATCH(Assumptions!H$5,'Capital Costs'!$M$2:$V$2,0)) -> 73.12353317 | I51: =INDEX('Capital Costs'!$M$47:$V$47,1,MATCH(Assumptions!I$5,'Capital Costs'!$M$2:$V$2,0)) -> 18.83874812 | J51: =INDEX('Capital Costs'!$M$47:$V$47,1,MATCH(Assumptions!J$5,'Capital Costs'!$M$2:$V$2,0)) -> 21.71107727 | K51: =INDEX('Capital Costs'!$M$47:$V$47,1,MATCH(Assumptions!K$5,'Capital Costs'!$M$2:$V$2,0)) -> 16.00326134 | L51: =INDEX('Capital Costs'!$M$47:$V$47,1,MATCH(Assumptions!L$5,'Capital Costs'!$M$2:$V$2,0)) -> 54.29719464 | M51: =INDEX('Capital Costs'!$M$47:$V$47,1,MATCH(Assumptions!M$5,'Capital Costs'!$M$2:$V$2,0)) -> 12.84860662 | N51: =INDEX('Capital Costs'!$M$47:$V$47,1,MATCH(Assumptions!N$5,'Capital Costs'!$M$2:$V$2,0)) -> 9.362318956 | O51: =INDEX('Capital Costs'!$M$47:$V$47,1,MATCH(Assumptions!O$5,'Capital Costs'!$M$2:$V$2,0)) -> 14.18056565
B52: =MAX($B$9:B51)+1 -> 37 | C52: EPC Cost Escalation Rate | D52: =OFFSET(F52,0,D$5-1) -> 0.007 | F52: 0.007 | G52: 0.007 | H52: 0.007 | I52: 0.007 | J52: 0.007 | K52: 0.007 | L52: 0.007 | M52: 0.007 | N52: 0.007 | O52: 0.007
B53: =MAX($B$9:B52)+1 -> 38 | C53: Non-EPC Cost Escalation Rate | D53: =OFFSET(F53,0,D$5-1) -> 0.019 | F53: 0.019 | G53: 0.019 | H53: 0.019 | I53: 0.019 | J53: 0.019 | K53: 0.019 | L53: 0.019 | M53: 0.019 | N53: 0.019 | O53: 0.019
B54: =MAX($B$9:B53)+1 -> 39 | C54: Fuel Inventory Escalation Rate | D54: 0.054 | F54: 0.054 | G54: 0.054 | H54: 0.054 | I54: 0.054 | J54: 0.054 | K54: 0.054 | L54: 0.054 | M54: 0.054 | N54: 0.054 | O54: 0.054
B55: =MAX($B$9:B54)+1 -> 40 | C55: Ongoing Maintenance (2019$/MW-yr) | D55: =OFFSET(F55,0,D$5-1) -> 1000 | F55: 1000 | G55: 1000 | H55: 1000 | I55: 1000 | J55: 1000 | K55: 1000 | L55: 1000 | M55: 1000 | N55: 1000 | O55: 1000
B56: =MAX($B$9:B55)+1 -> 41 | C56: Fixed O&M LTSA (2019$/kW-yr) | D56: =OFFSET(F56,0,D$5-1) -> 13 | F56: =4.6*12 -> 55.2 | G56: =3.34*12 -> 40.08 | H56: =7.16*12 -> 85.92 | I56: =F56 -> 55.2 | J56: =G56 -> 40.08 | K56: 30 | L56: 82 | M56: 13 | N56: 22 | O56: 40
B57: =MAX($B$9:B56)+1 -> 42 | C57: Fixed O&M Escalation Rate | D57: =$D$36 -> 0.02
B58: =MAX($B$9:B57)+1 -> 43 | C58: Fixed O&M LTSA (2025$/kW-yr) | D58: =OFFSET(F58,0,D$5-1) -> 15.76627387 | F58: =((F55/1000)+F56)*(1+$D$57)^(2025-2019) -> 63.29032796 | G58: =((G55/1000)+G56)*(1+$D$57)^(2025-2019) -> 46.26275218 | H58: =((H55/1000)+H56)*(1+$D$57)^(2025-2019) -> 97.88603748 | I58: 63.29032796 | J58: 46.26275218 | K58: 34.911035 | L58: 93.4714808 | M58: 15.76627387 | N58: 25.90173564 | O58: 46.17265919
B60: Note: all dollar amounts are in capacity year dollars

Sheet Construction CF
A1: Drawdown Schedule and Construction Cash Flow
A3: Technology | B3: ='Controls & Results'!D8 -> Solar - ORTP
A6: Capital Draw Down Schedule
C7: =EDATE(45809,-B8) -> 2024-02-01 | D7: =EDATE(C7,1) -> 2024-03-01 | E7: =EDATE(D7,1) -> 2024-04-01 | F7: 2024-05-01 | G7: 2024-06-01 | H7: 2024-07-01 | I7: 2024-08-01 | J7: 2024-09-01 | K7: 2024-10-01 | L7: 2024-11-01 | M7: 2024-12-01 | N7: 2025-01-01 | O7: 2025-02-01 | P7: 2025-03-01 | Q7: 2025-04-01 | R7: 2025-05-01 | S7: 2025-06-01 | T7: 2025-07-01 | U7: 2025-08-01 | V7: 2025-09-01 | W7: 2025-10-01 | X7: 2025-11-01 | Y7: 2025-12-01 | Z7: 2026-01-01 | AA7: 2026-02-01 | AB7: 2026-03-01 | AC7: 2026-04-01 | AD7: 2026-05-01 | AE7: 2026-06-01 | AF7: 2026-07-01 | AG7: 2026-08-01 | AH7: 2026-09-01 | AI7: 2026-10-01 | AJ7: 2026-11-01 | AK7: 2026-12-01 | AL7: 2027-01-01 | AM7: 2027-02-01 | AN7: 2027-03-01 | AO7: 2027-04-01 | AP7: 2027-05-01 | AQ7: 2027-06-01 | AR7: 2027-07-01 | AS7: 2027-08-01 | AT7: 2027-09-01 | AU7: 2027-10-01 | AV7: 2027-11-01 | AW7: 2027-12-01 | AX7: 2028-01-01
A8: Month Count | B8: =COUNTIF(C8:AX8,1) -> 16 | C8: =IF(OR(C10>0,SUM(C$10:$AX$10)>0),1,0) -> 1 | D8: =IF(OR(D10>0,SUM(D$10:$AX$10)>0),1,0) -> 1 | E8: =IF(OR(E10>0,SUM(E$10:$AX$10)>0),1,0) -> 1 | F8: =IF(OR(F10>0,SUM(F$10:$AX$10)>0),1,0) -> 1 | G8: =IF(OR(G10>0,SUM(G$10:$AX$10)>0),1,0) -> 1 | H8: =IF(OR(H10>0,SUM(H$10:$AX$10)>0),1,0) -> 1 | I8: =IF(OR(I10>0,SUM(I$10:$AX$10)>0),1,0) -> 1 | J8: =IF(OR(J10>0,SUM(J$10:$AX$10)>0),1,0) -> 1 | K8: =IF(OR(K10>0,SUM(K$10:$AX$10)>0),1,0) -> 1 | L8: =IF(OR(L10>0,SUM(L$10:$AX$10)>0),1,0) -> 1 | M8: =IF(OR(M10>0,SUM(M$10:$AX$10)>0),1,0) -> 1 | N8: =IF(OR(N10>0,SUM(N$10:$AX$10)>0),1,0) -> 1 | O8: =IF(OR(O10>0,SUM(O$10:$AX$10)>0),1,0) -> 1 | P8: =IF(OR(P10>0,SUM(P$10:$AX$10)>0),1,0) -> 1 | Q8: =IF(OR(Q10>0,SUM(Q$10:$AX$10)>0),1,0) -> 1 | R8: =IF(OR(R10>0,SUM(R$10:$AX$10)>0),1,0) -> 1 | S8: =IF(OR(S10>0,SUM(S$10:$AX$10)>0),1,0) -> 0 | T8: =IF(OR(T10>0,SUM(T$10:$AX$10)>0),1,0) -> 0 | U8: =IF(OR(U10>0,SUM(U$10:$AX$10)>0),1,0) -> 0 | V8: =IF(OR(V10>0,SUM(V$10:$AX$10)>0),1,0) -> 0 | W8: =IF(OR(W10>0,SUM(W$10:$AX$10)>0),1,0) -> 0 | X8: =IF(OR(X10>0,SUM(X$10:$AX$10)>0),1,0) -> 0 | Y8: =IF(OR(Y10>0,SUM(Y$10:$AX$10)>0),1,0) -> 0 | Z8: =IF(OR(Z10>0,SUM(Z$10:$AX$10)>0),1,0) -> 0 | AA8: =IF(OR(AA10>0,SUM(AA$10:$AX$10)>0),1,0) -> 0 | AB8: =IF(OR(AB10>0,SUM(AB$10:$AX$10)>0),1,0) -> 0 | AC8: =IF(OR(AC10>0,SUM(AC$10:$AX$10)>0),1,0) -> 0 | AD8: =IF(OR(AD10>0,SUM(AD$10:$AX$10)>0),1,0) -> 0 | AE8: =IF(OR(AE10>0,SUM(AE$10:$AX$10)>0),1,0) -> 0 | AF8: =IF(OR(AF10>0,SUM(AF$10:$AX$10)>0),1,0) -> 0 | AG8: =IF(OR(AG10>0,SUM(AG$10:$AX$10)>0),1,0) -> 0 | AH8: =IF(OR(AH10>0,SUM(AH$10:$AX$10)>0),1,0) -> 0 | AI8: =IF(OR(AI10>0,SUM(AI$10:$AX$10)>0),1,0) -> 0 | AJ8: =IF(OR(AJ10>0,SUM(AJ$10:$AX$10)>0),1,0) -> 0 | AK8: =IF(OR(AK10>0,SUM(AK$10:$AX$10)>0),1,0) -> 0 | AL8: =IF(OR(AL10>0,SUM(AL$10:$AX$10)>0),1,0) -> 0 | AM8: =IF(OR(AM10>0,SUM(AM$10:$AX$10)>0),1,0) -> 0 | AN8: =IF(OR(AN10>0,SUM(AN$10:$AX$10)>0),1,0) -> 0 | AO8: =IF(OR(AO10>0,SUM(AO$10:$AX$10)>0),1,0) -> 0 | AP8: =IF(OR(AP10>0,SUM(AP$10:$AX$10)>0),1,0) -> 0 | AQ8: =IF(OR(AQ10>0,SUM(AQ$10:$AX$10)>0),1,0) -> 0 | AR8: =IF(OR(AR10>0,SUM(AR$10:$AX$10)>0),1,0) -> 0 | AS8: =IF(OR(AS10>0,SUM(AS$10:$AX$10)>0),1,0) -> 0 | AT8: =IF(OR(AT10>0,SUM(AT$10:$AX$10)>0),1,0) -> 0 | AU8: =IF(OR(AU10>0,SUM(AU$10:$AX$10)>0),1,0) -> 0 | AV8: =IF(OR(AV10>0,SUM(AV$10:$AX$10)>0),1,0) -> 0 | AW8: =IF(OR(AW10>0,SUM(AW$10:$AX$10)>0),1,0) -> 0 | AX8: =IF(OR(AX10>0,SUM(AX$10:$AX$10)>0),1,0) -> 0
A9: Construction Month | C9: 1 | D9: 2 | E9: 3 | F9: 4 | G9: 5 | H9: 6 | I9: 7 | J9: 8 | K9: 9 | L9: 10 | M9: 11 | N9: 12 | O9: 13 | P9: 14 | Q9: 15 | R9: 16 | S9: 17 | T9: 18 | U9: 19 | V9: 20 | W9: 21 | X9: 22 | Y9: 23 | Z9: 24 | AA9: 25 | AB9: 26 | AC9: 27 | AD9: 28 | AE9: 29 | AF9: 30 | AG9: 31 | AH9: 32 | AI9: 33 | AJ9: 34 | AK9: 35 | AL9: 36 | AM9: 37 | AN9: 38 | AO9: 39 | AP9: 40 | AQ9: 41 | AR9: 42 | AS9: 43 | AT9: 44 | AU9: 45 | AV9: 46 | AW9: 47 | AX9: 48 | AY9: Total
A10: Capital Draw Down | C10: =OFFSET(C13,MATCH($B$3,$A$13:$A$22,0)-1,0) -> 0.04 | D10: 0 | E10: 0 | F10: 0 | G10: 0 | H10: 0 | I10: 0.15 | J10: 0.08 | K10: 0.1 | L10: 0.3 | M10: 0.08 | N10: 0.05 | O10: 0.05 | P10: 0.05 | Q10: 0.05 | R10: 0.05 | S10: 0 | T10: 0 | U10: 0 | V10: 0 | W10: 0 | X10: 0 | Y10: 0 | Z10: 0 | AA10: 0 | AB10: 0 | AC10: 0 | AD10: 0 | AE10: 0 | AF10: 0 | AG10: 0 | AH10: 0 | AI10: 0 | AJ10: 0 | AK10: 0 | AL10: 0 | AM10: 0 | AN10: 0 | AO10: 0 | AP10: 0 | AQ10: 0 | AR10: 0 | AS10: 0 | AT10: 0 | AU10: 0 | AV10: 0 | AW10: 0 | AX10: 0 | AY10: =SUM(C10:AX10) -> 1
A13: =Assumptions!$F$5 -> CC - CONE | C13: 0.005 | D13: 0.1 | E13: 0.05 | F13: 0.05 | G13: 0.065 | H13: 0.055 | I13: 0.065 | J13: 0.065 | K13: 0.075 | L13: 0.08 | M13: 0.075 | N13: 0.07 | O13: 0.07 | P13: 0.05 | Q13: 0.025 | R13: 0.02 | S13: 0.015 | T13: 0.01 | U13: 0.0075 | V13: 0.005 | W13: 0.0025 | X13: 0.0025 | Y13: 0.0025 | Z13: 0.0025 | AA13: 0.0025 | AB13: 0.0025 | AC13: 0.0025 | AD13: 0.025 | AY13: =SUM(C13:AX13) -> 1
A14: =Assumptions!$G$5 -> SC - CONE | C14: 0.005 | D14: 0.125 | E14: 0.075 | F14: 0.1 | G14: 0.075 | H14: 0.05 | I14: 0.125 | J14: 0.11 | K14: 0.11 | L14: 0.075 | M14: 0.04 | N14: 0.025 | O14: 0.01 | P14: 0.01 | Q14: 0.01 | R14: 0.01 | S14: 0.005 | T14: 0.005 | U14: 0.005 | V14: 0.005 | W14: 0.025 | AY14: =SUM(C14:AX14) -> 1
A15: =Assumptions!$H$5 -> Aero - CONE | C15: 0.005 | D15: 0.125 | E15: 0.075 | F15: 0.1 | G15: 0.075 | H15: 0.05 | I15: 0.125 | J15: 0.12 | K15: 0.11 | L15: 0.075 | M15: 0.04 | N15: 0.025 | O15: 0.015 | P15: 0.01 | Q15: 0.01 | R15: 0.015 | S15: 0.025 | AY15: 1
A16: =Assumptions!$I$5 -> CC - ORTP | C16: =C13 -> 0.005 | D16: 0.1 | E16: 0.05 | F16: 0.05 | G16: 0.065 | H16: 0.055 | I16: 0.065 | J16: 0.065 | K16: 0.075 | L16: 0.08 | M16: 0.075 | N16: 0.07 | O16: 0.07 | P16: 0.05 | Q16: 0.025 | R16: 0.02 | S16: 0.015 | T16: 0.01 | U16: 0.0075 | V16: 0.005 | W16: 0.0025 | X16: 0.0025 | Y16: 0.0025 | Z16: 0.0025 | AA16: 0.0025 | AB16: 0.0025 | AC16: 0.0025 | AD16: 0.025 | AY16: =SUM(C16:AX16) -> 1
A17: =Assumptions!$J$5 -> SC - ORTP | C17: =C14 -> 0.005 | D17: 0.125 | E17: 0.075 | F17: 0.1 | G17: 0.075 | H17: 0.05 | I17: 0.125 | J17: 0.11 | K17: 0.11 | L17: 0.075 | M17: 0.04 | N17: 0.025 | O17: 0.01 | P17: 0.01 | Q17: 0.01 | R17: 0.01 | S17: 0.005 | T17: 0.005 | U17: 0.005 | V17: 0.005 | W17: 0.025 | AY17: =SUM(C17:AX17) -> 1
A18: =Assumptions!$K$5 -> Onshore Wind - ORTP | C18: 0.025 | D18: 0 | E18: 0 | F18: 0 | G18: 0 | H18: 0.015 | I18: 0.2 | J18: 0 | K18: 0 | L18: 0.05 | M18: 0.4 | N18: 0.05 | O18: 0.025 | P18: 0.005 | Q18: 0.05 | R18: 0.075 | S18: 0.04 | T18: 0.03 | U18: 0.01 | V18: 0 | W18: 0.025 | AY18: 1
A19: =Assumptions!$L$5 -> Offshore Wind - ORTP | C19: =20%/12 -> 0.01666666667 | D19: 0.01666666667 | E19: 0.01666666667 | F19: 0.01666666667 | G19: 0.01666666667 | H19: 0.01666666667 | I19: 0.01666666667 | J19: 0.01666666667 | K19: 0.01666666667 | L19: 0.01666666667 | M19: 0.01666666667 | N19: 0.01666666667 | O19: =40%/12 -> 0.03333333333 | P19: 0.03333333333 | Q19: 0.03333333333 | R19: 0.03333333333 | S19: 0.03333333333 | T19: 0.03333333333 | U19: 0.03333333333 | V19: 0.03333333333 | W19: 0.03333333333 | X19: 0.03333333333 | Y19: 0.03333333333 | Z19: 0.03333333333 | AA19: =30%/12 -> 0.025 | AB19: 0.025 | AC19: 0.025 | AD19: 0.025 | AE19: 0.025 | AF19: 0.025 | AG19: 0.025 | AH19: 0.025 | AI19: 0.025 | AJ19: 0.025 | AK19: 0.025 | AL19: 0.025 | AM19: =10%/12 -> 0.008333333333 | AN19: 0.008333333333 | AO19: 0.008333333333 | AP19: 0.008333333333 | AQ19: 0.008333333333 | AR19: 0.008333333333 | AS19: 0.008333333333 | AT19: 0.008333333333 | AU19: 0.008333333333 | AV19: 0.008333333333 | AW19: 0.008333333333 | AX19: 0.008333333333 | AY19: 1
A20: =Assumptions!$M$5 -> Solar - ORTP | C20: 0.04 | D20: 0 | E20: 0 | F20: 0 | G20: 0 | H20: 0 | I20: 0.15 | J20: 0.08 | K20: 0.1 | L20: 0.3 | M20: 0.08 | N20: 0.05 | O20: 0.05 | P20: 0.05 | Q20: 0.05 | R20: 0.05 | AY20: 1
A21: =Assumptions!$N$5 -> Battery - ORTP | C21: 0.02 | D21: 0 | E21: 0.2 | F21: 0.05 | G21: 0 | H21: 0.02 | I21: 0 | J21: 0.02 | K21: 0.2 | L21: 0.02 | M21: 0.2 | N21: 0.02 | O21: 0.02 | P21: 0.02 | Q21: 0.075 | R21: 0.075 | S21: 0.06 | AY21: 1
A22: =Assumptions!$O$5 -> Co-located Resource - ORTP | C22: 0.05 | D22: 0.15 | E22: 0.075 | F22: 0.1 | G22: 0.3 | H22: 0.075 | I22: 0.05 | J22: 0.05 | K22: 0.05 | L22: 0.05 | M22: 0.05 | AY22: =SUM(C22:AX22) -> 1
A26: Construction Cash Flow
C28: =C7 -> 2024-02-01 | D28: 2024-03-01 | E28: 2024-04-01 | F28: 2024-05-01 | G28: 2024-06-01 | H28: 2024-07-01 | I28: 2024-08-01 | J28: 2024-09-01 | K28: 2024-10-01 | L28: 2024-11-01 | M28: 2024-12-01 | N28: 2025-01-01 | O28: 2025-02-01 | P28: 2025-03-01 | Q28: 2025-04-01 | R28: 2025-05-01 | S28: 2025-06-01 | T28: 2025-07-01 | U28: 2025-08-01 | V28: 2025-09-01 | W28: 2025-10-01 | X28: 2025-11-01 | Y28: 2025-12-01 | Z28: 2026-01-01 | AA28: 2026-02-01 | AB28: 2026-03-01 | AC28: 2026-04-01 | AD28: 2026-05-01 | AE28: 2026-06-01 | AF28: 2026-07-01 | AG28: 2026-08-01 | AH28: 2026-09-01 | AI28: 2026-10-01 | AJ28: 2026-11-01 | AK28: 2026-12-01 | AL28: 2027-01-01 | AM28: 2027-02-01 | AN28: 2027-03-01 | AO28: 2027-04-01 | AP28: 2027-05-01 | AQ28: 2027-06-01 | AR28: 2027-07-01 | AS28: 2027-08-01 | AT28: 2027-09-01 | AU28: 2027-10-01 | AV28: 2027-11-01 | AW28: 2027-12-01 | AX28: 2028-01-01
A29: Capital Costs
A30: ="Overnight Cost at beginning of construction ("&TEXT($C$28,"mmm-yyyy")&"$)" -> Overnight Cost at beginning of construction (Feb-2024$) | B30: =Assumptions!D50*1000*Assumptions!D15 -> 31904461.02 | C30: =$B$30*C10 -> 1276178.441 | D30: 0 | E30: 0 | F30: 0 | G30: 0 | H30: 0 | I30: 4785669.153 | J30: 2552356.882 | K30: 3190446.102 | L30: 9571338.306 | M30: 2552356.882 | N30: 1595223.051 | O30: 1595223.051 | P30: 1595223.051 | Q30: 1595223.051 | R30: 1595223.051 | S30: 0 | T30: 0 | U30: 0 | V30: 0 | W30: 0 | X30: 0 | Y30: 0 | Z30: 0 | AA30: 0 | AB30: 0 | AC30: 0 | AD30: 0 | AE30: 0 | AF30: 0 | AG30: 0 | AH30: 0 | AI30: 0 | AJ30: 0 | AK30: 0 | AL30: 0 | AM30: 0 | AN30: 0 | AO30: 0 | AP30: 0 | AQ30: 0 | AR30: 0 | AS30: 0 | AT30: 0 | AU30: 0 | AV30: 0 | AW30: 0 | AX30: 0
A31: Inflation Adjusted (nominal $) | C31: =C30*(1+Assumptions!$D$41)^(C9-1) -> 1276178.441 | D31: =D30*(1+Assumptions!$D$41)^(D9-1) -> 0 | E31: =E30*(1+Assumptions!$D$41)^(E9-1) -> 0 | F31: =F30*(1+Assumptions!$D$41)^(F9-1) -> 0 | G31: =G30*(1+Assumptions!$D$41)^(G9-1) -> 0 | H31: =H30*(1+Assumptions!$D$41)^(H9-1) -> 0 | I31: =I30*(1+Assumptions!$D$41)^(I9-1) -> 4833288.925 | J31: =J30*(1+Assumptions!$D$41)^(J9-1) -> 2582011.464 | K31: =K30*(1+Assumptions!$D$41)^(K9-1) -> 3232844.832 | L31: =L30*(1+Assumptions!$D$41)^(L9-1) -> 9714552.414 | M31: =M30*(1+Assumptions!$D$41)^(M9-1) -> 2594825.81 | N31: =N30*(1+Assumptions!$D$41)^(N9-1) -> 1624444.61 | O31: =O30*(1+Assumptions!$D$41)^(O9-1) -> 1627127.512 | P31: =P30*(1+Assumptions!$D$41)^(P9-1) -> 1629814.845 | Q31: =Q30*(1+Assumptions!$D$41)^(Q9-1) -> 1632506.617 | R31: =R30*(1+Assumptions!$D$41)^(R9-1) -> 1635202.835 | S31: =S30*(1+Assumptions!$D$41)^(S9-1) -> 0 | T31: =T30*(1+Assumptions!$D$41)^(T9-1) -> 0 | U31: =U30*(1+Assumptions!$D$41)^(U9-1) -> 0 | V31: =V30*(1+Assumptions!$D$41)^(V9-1) -> 0 | W31: =W30*(1+Assumptions!$D$41)^(W9-1) -> 0 | X31: =X30*(1+Assumptions!$D$41)^(X9-1) -> 0 | Y31: =Y30*(1+Assumptions!$D$41)^(Y9-1) -> 0 | Z31: =Z30*(1+Assumptions!$D$41)^(Z9-1) -> 0 | AA31: =AA30*(1+Assumptions!$D$41)^(AA9-1) -> 0 | AB31: =AB30*(1+Assumptions!$D$41)^(AB9-1) -> 0 | AC31: =AC30*(1+Assumptions!$D$41)^(AC9-1) -> 0 | AD31: =AD30*(1+Assumptions!$D$41)^(AD9-1) -> 0 | AE31: =AE30*(1+Assumptions!$D$41)^(AE9-1) -> 0 | AF31: =AF30*(1+Assumptions!$D$41)^(AF9-1) -> 0 | AG31: =AG30*(1+Assumptions!$D$41)^(AG9-1) -> 0 | AH31: =AH30*(1+Assumptions!$D$41)^(AH9-1) -> 0 | AI31: =AI30*(1+Assumptions!$D$41)^(AI9-1) -> 0 | AJ31: =AJ30*(1+Assumptions!$D$41)^(AJ9-1) -> 0 | AK31: =AK30*(1+Assumptions!$D$41)^(AK9-1) -> 0 | AL31: =AL30*(1+Assumptions!$D$41)^(AL9-1) -> 0 | AM31: =AM30*(1+Assumptions!$D$41)^(AM9-1) -> 0 | AN31: =AN30*(1+Assumptions!$D$41)^(AN9-1) -> 0 | AO31: =AO30*(1+Assumptions!$D$41)^(AO9-1) -> 0 | AP31: =AP30*(1+Assumptions!$D$41)^(AP9-1) -> 0 | AQ31: =AQ30*(1+Assumptions!$D$41)^(AQ9-1) -> 0 | AR31: =AR30*(1+Assumptions!$D$41)^(AR9-1) -> 0 | AS31: =AS30*(1+Assumptions!$D$41)^(AS9-1) -> 0 | AT31: =AT30*(1+Assumptions!$D$41)^(AT9-1) -> 0 | AU31: =AU30*(1+Assumptions!$D$41)^(AU9-1) -> 0 | AV31: =AV30*(1+Assumptions!$D$41)^(AV9-1) -> 0 | AW31: =AW30*(1+Assumptions!$D$41)^(AW9-1) -> 0 | AX31: =AX30*(1+Assumptions!$D$41)^(AX9-1) -> 0
A33: Interest
A34: =TEXT($C$28,"mmm-yyyy")&"$" -> Feb-2024$ | C34: =IF(C9>$B$8,0,B44*Assumptions!$D$46*Assumptions!$D$31) -> 0 | D34: =IF(D9>$B$8,0,C44*Assumptions!$D$46*Assumptions!$D$31) -> 3727.117855 | E34: =IF(E9>$B$8,0,D44*Assumptions!$D$46*Assumptions!$D$31) -> 3727.117855 | F34: =IF(F9>$B$8,0,E44*Assumptions!$D$46*Assumptions!$D$31) -> 3727.117855 | G34: =IF(G9>$B$8,0,F44*Assumptions!$D$46*Assumptions!$D$31) -> 3727.117855 | H34: =IF(H9>$B$8,0,G44*Assumptions!$D$46*Assumptions!$D$31) -> 3727.117855 | I34: =IF(I9>$B$8,0,H44*Assumptions!$D$46*Assumptions!$D$31) -> 3727.117855 | J34: =IF(J9>$B$8,0,I44*Assumptions!$D$46*Assumptions!$D$31) -> 17703.80981 | K34: =IF(K9>$B$8,0,J44*Assumptions!$D$46*Assumptions!$D$31) -> 25158.04552 | L34: =IF(L9>$B$8,0,K44*Assumptions!$D$46*Assumptions!$D$31) -> 34475.84016 | M34: =IF(M9>$B$8,0,L44*Assumptions!$D$46*Assumptions!$D$31) -> 62429.22407 | N34: =IF(N9>$B$8,0,M44*Assumptions!$D$46*Assumptions!$D$31) -> 69883.45978 | O34: =IF(O9>$B$8,0,N44*Assumptions!$D$46*Assumptions!$D$31) -> 74542.35709 | P34: =IF(P9>$B$8,0,O44*Assumptions!$D$46*Assumptions!$D$31) -> 79201.25441 | Q34: =IF(Q9>$B$8,0,P44*Assumptions!$D$46*Assumptions!$D$31) -> 83860.15173 | R34: =IF(R9>$B$8,0,Q44*Assumptions!$D$46*Assumptions!$D$31) -> 88519.04905 | S34: =IF(S9>$B$8,0,R44*Assumptions!$D$46*Assumptions!$D$31) -> 0 | T34: =IF(T9>$B$8,0,S44*Assumptions!$D$46*Assumptions!$D$31) -> 0 | U34: =IF(U9>$B$8,0,T44*Assumptions!$D$46*Assumptions!$D$31) -> 0 | V34: =IF(V9>$B$8,0,U44*Assumptions!$D$46*Assumptions!$D$31) -> 0 | W34: =IF(W9>$B$8,0,V44*Assumptions!$D$46*Assumptions!$D$31) -> 0 | X34: =IF(X9>$B$8,0,W44*Assumptions!$D$46*Assumptions!$D$31) -> 0 | Y34: =IF(Y9>$B$8,0,X44*Assumptions!$D$46*Assumptions!$D$31) -> 0 | Z34: =IF(Z9>$B$8,0,Y44*Assumptions!$D$46*Assumptions!$D$31) -> 0 | AA34: =IF(AA9>$B$8,0,Z44*Assumptions!$D$46*Assumptions!$D$31) -> 0 | AB34: =IF(AB9>$B$8,0,AA44*Assumptions!$D$46*Assumptions!$D$31) -> 0 | AC34: =IF(AC9>$B$8,0,AB44*Assumptions!$D$46*Assumptions!$D$31) -> 0 | AD34: =IF(AD9>$B$8,0,AC44*Assumptions!$D$46*Assumptions!$D$31) -> 0 | AE34: =IF(AE9>$B$8,0,AD44*Assumptions!$D$46*Assumptions!$D$31) -> 0 | AF34: =IF(AF9>$B$8,0,AE44*Assumptions!$D$46*Assumptions!$D$31) -> 0 | AG34: =IF(AG9>$B$8,0,AF44*Assumptions!$D$46*Assumptions!$D$31) -> 0 | AH34: =IF(AH9>$B$8,0,AG44*Assumptions!$D$46*Assumptions!$D$31) -> 0 | AI34: =IF(AI9>$B$8,0,AH44*Assumptions!$D$46*Assumptions!$D$31) -> 0 | AJ34: =IF(AJ9>$B$8,0,AI44*Assumptions!$D$46*Assumptions!$D$31) -> 0 | AK34: =IF(AK9>$B$8,0,AJ44*Assumptions!$D$46*Assumptions!$D$31) -> 0 | AL34: =IF(AL9>$B$8,0,AK44*Assumptions!$D$46*Assumptions!$D$31) -> 0 | AM34: =IF(AM9>$B$8,0,AL44*Assumptions!$D$46*Assumptions!$D$31) -> 0 | AN34: =IF(AN9>$B$8,0,AM44*Assumptions!$D$46*Assumptions!$D$31) -> 0 | AO34: =IF(AO9>$B$8,0,AN44*Assumptions!$D$46*Assumptions!$D$31) -> 0 | AP34: =IF(AP9>$B$8,0,AO44*Assumptions!$D$46*Assumptions!$D$31) -> 0 | AQ34: =IF(AQ9>$B$8,0,AP44*Assumptions!$D$46*Assumptions!$D$31) -> 0 | AR34: =IF(AR9>$B$8,0,AQ44*Assumptions!$D$46*Assumptions!$D$31) -> 0 | AS34: =IF(AS9>$B$8,0,AR44*Assumptions!$D$46*Assumptions!$D$31) -> 0 | AT34: =IF(AT9>$B$8,0,AS44*Assumptions!$D$46*Assumptions!$D$31) -> 0 | AU34: =IF(AU9>$B$8,0,AT44*Assumptions!$D$46*Assumptions!$D$31) -> 0 | AV34: =IF(AV9>$B$8,0,AU44*Assumptions!$D$46*Assumptions!$D$31) -> 0 | AW34: =IF(AW9>$B$8,0,AV44*Assumptions!$D$46*Assumptions!$D$31) -> 0 | AX34: =IF(AX9>$B$8,0,AW44*Assumptions!$D$46*Assumptions!$D$31) -> 0
A35: Inflation Adjusted (nominal $) | C35: =C34*(1+Assumptions!$D$41)^(C9-1) -> 0 | D35: =D34*(1+Assumptions!$D$41)^(D9-1) -> 3733.273493 | E35: =E34*(1+Assumptions!$D$41)^(E9-1) -> 3739.439298 | F35: =F34*(1+Assumptions!$D$41)^(F9-1) -> 3745.615286 | G35: =G34*(1+Assumptions!$D$41)^(G9-1) -> 3751.801474 | H35: =H34*(1+Assumptions!$D$41)^(H9-1) -> 3757.997879 | I35: =I34*(1+Assumptions!$D$41)^(I9-1) -> 3764.204518 | J35: =J34*(1+Assumptions!$D$41)^(J9-1) -> 17909.50169 | K35: =K34*(1+Assumptions!$D$41)^(K9-1) -> 25492.37782 | L35: =L34*(1+Assumptions!$D$41)^(L9-1) -> 34991.69557 | M35: =M34*(1+Assumptions!$D$41)^(M9-1) -> 63467.99033 | N35: =N34*(1+Assumptions!$D$41)^(N9-1) -> 71163.59651 | O35: =O34*(1+Assumptions!$D$41)^(O9-1) -> 76033.20424 | P35: =P34*(1+Assumptions!$D$41)^(P9-1) -> 80918.70296 | Q35: =Q34*(1+Assumptions!$D$41)^(Q9-1) -> 85820.13188 | R35: =R34*(1+Assumptions!$D$41)^(R9-1) -> 90737.53029 | S35: =S34*(1+Assumptions!$D$41)^(S9-1) -> 0 | T35: =T34*(1+Assumptions!$D$41)^(T9-1) -> 0 | U35: =U34*(1+Assumptions!$D$41)^(U9-1) -> 0 | V35: =V34*(1+Assumptions!$D$41)^(V9-1) -> 0 | W35: =W34*(1+Assumptions!$D$41)^(W9-1) -> 0 | X35: =X34*(1+Assumptions!$D$41)^(X9-1) -> 0 | Y35: =Y34*(1+Assumptions!$D$41)^(Y9-1) -> 0 | Z35: =Z34*(1+Assumptions!$D$41)^(Z9-1) -> 0 | AA35: =AA34*(1+Assumptions!$D$41)^(AA9-1) -> 0 | AB35: =AB34*(1+Assumptions!$D$41)^(AB9-1) -> 0 | AC35: =AC34*(1+Assumptions!$D$41)^(AC9-1) -> 0 | AD35: =AD34*(1+Assumptions!$D$41)^(AD9-1) -> 0 | AE35: =AE34*(1+Assumptions!$D$41)^(AE9-1) -> 0 | AF35: =AF34*(1+Assumptions!$D$41)^(AF9-1) -> 0 | AG35: =AG34*(1+Assumptions!$D$41)^(AG9-1) -> 0 | AH35: =AH34*(1+Assumptions!$D$41)^(AH9-1) -> 0 | AI35: =AI34*(1+Assumptions!$D$41)^(AI9-1) -> 0 | AJ35: =AJ34*(1+Assumptions!$D$41)^(AJ9-1) -> 0 | AK35: =AK34*(1+Assumptions!$D$41)^(AK9-1) -> 0 | AL35: =AL34*(1+Assumptions!$D$41)^(AL9-1) -> 0 | AM35: =AM34*(1+Assumptions!$D$41)^(AM9-1) -> 0 | AN35: =AN34*(1+Assumptions!$D$41)^(AN9-1) -> 0 | AO35: =AO34*(1+Assumptions!$D$41)^(AO9-1) -> 0 | AP35: =AP34*(1+Assumptions!$D$41)^(AP9-1) -> 0 | AQ35: =AQ34*(1+Assumptions!$D$41)^(AQ9-1) -> 0 | AR35: =AR34*(1+Assumptions!$D$41)^(AR9-1) -> 0 | AS35: =AS34*(1+Assumptions!$D$41)^(AS9-1) -> 0 | AT35: =AT34*(1+Assumptions!$D$41)^(AT9-1) -> 0 | AU35: =AU34*(1+Assumptions!$D$41)^(AU9-1) -> 0 | AV35: =AV34*(1+Assumptions!$D$41)^(AV9-1) -> 0 | AW35: =AW34*(1+Assumptions!$D$41)^(AW9-1) -> 0 | AX35: =AX34*(1+Assumptions!$D$41)^(AX9-1) -> 0
A37: Non-Depreciable Assets
A38: ="Cost at beginning of construction ("&TEXT($C$28,"mmm-yyyy")&"$)" -> Cost at beginning of construction (Feb-2024$) | B38: =Assumptions!D51*1000*Assumptions!D15 -> 256972.1325 | C38: =$B$38*C10 -> 10278.8853 | D38: 0 | E38: 0 | F38: 0 | G38: 0 | H38: 0 | I38: 38545.81987 | J38: 20557.7706 | K38: 25697.21325 | L38: 77091.63974 | M38: 20557.7706 | N38: 12848.60662 | O38: 12848.60662 | P38: 12848.60662 | Q38: 12848.60662 | R38: 12848.60662 | S38: 0 | T38: 0 | U38: 0 | V38: 0 | W38: 0 | X38: 0 | Y38: 0 | Z38: 0 | AA38: 0 | AB38: 0 | AC38: 0 | AD38: 0 | AE38: 0 | AF38: 0 | AG38: 0 | AH38: 0 | AI38: 0 | AJ38: 0 | AK38: 0 | AL38: 0 | AM38: 0 | AN38: 0 | AO38: 0 | AP38: 0 | AQ38: 0 | AR38: 0 | AS38: 0 | AT38: 0 | AU38: 0 | AV38: 0 | AW38: 0 | AX38: 0
A39: Inflation Adjusted (nominal $) | C39: =C38*(1+Assumptions!$D$41)^(C9-1) -> 10278.8853 | D39: =D38*(1+Assumptions!$D$41)^(D9-1) -> 0 | E39: =E38*(1+Assumptions!$D$41)^(E9-1) -> 0 | F39: =F38*(1+Assumptions!$D$41)^(F9-1) -> 0 | G39: =G38*(1+Assumptions!$D$41)^(G9-1) -> 0 | H39: =H38*(1+Assumptions!$D$41)^(H9-1) -> 0 | I39: =I38*(1+Assumptions!$D$41)^(I9-1) -> 38929.36981 | J39: =J38*(1+Assumptions!$D$41)^(J9-1) -> 20796.62124 | K39: =K38*(1+Assumptions!$D$41)^(K9-1) -> 26038.71069 | L39: =L38*(1+Assumptions!$D$41)^(L9-1) -> 78245.14723 | M39: =M38*(1+Assumptions!$D$41)^(M9-1) -> 20899.83345 | N39: =N38*(1+Assumptions!$D$41)^(N9-1) -> 13083.96952 | O39: =O38*(1+Assumptions!$D$41)^(O9-1) -> 13105.57876 | P39: =P38*(1+Assumptions!$D$41)^(P9-1) -> 13127.22369 | Q39: =Q38*(1+Assumptions!$D$41)^(Q9-1) -> 13148.90436 | R39: =R38*(1+Assumptions!$D$41)^(R9-1) -> 13170.62085 | S39: =S38*(1+Assumptions!$D$41)^(S9-1) -> 0 | T39: =T38*(1+Assumptions!$D$41)^(T9-1) -> 0 | U39: =U38*(1+Assumptions!$D$41)^(U9-1) -> 0 | V39: =V38*(1+Assumptions!$D$41)^(V9-1) -> 0 | W39: =W38*(1+Assumptions!$D$41)^(W9-1) -> 0 | X39: =X38*(1+Assumptions!$D$41)^(X9-1) -> 0 | Y39: =Y38*(1+Assumptions!$D$41)^(Y9-1) -> 0 | Z39: =Z38*(1+Assumptions!$D$41)^(Z9-1) -> 0 | AA39: =AA38*(1+Assumptions!$D$41)^(AA9-1) -> 0 | AB39: =AB38*(1+Assumptions!$D$41)^(AB9-1) -> 0 | AC39: =AC38*(1+Assumptions!$D$41)^(AC9-1) -> 0 | AD39: =AD38*(1+Assumptions!$D$41)^(AD9-1) -> 0 | AE39: =AE38*(1+Assumptions!$D$41)^(AE9-1) -> 0 | AF39: =AF38*(1+Assumptions!$D$41)^(AF9-1) -> 0 | AG39: =AG38*(1+Assumptions!$D$41)^(AG9-1) -> 0 | AH39: =AH38*(1+Assumptions!$D$41)^(AH9-1) -> 0 | AI39: =AI38*(1+Assumptions!$D$41)^(AI9-1) -> 0 | AJ39: =AJ38*(1+Assumptions!$D$41)^(AJ9-1) -> 0 | AK39: =AK38*(1+Assumptions!$D$41)^(AK9-1) -> 0 | AL39: =AL38*(1+Assumptions!$D$41)^(AL9-1) -> 0 | AM39: =AM38*(1+Assumptions!$D$41)^(AM9-1) -> 0 | AN39: =AN38*(1+Assumptions!$D$41)^(AN9-1) -> 0 | AO39: =AO38*(1+Assumptions!$D$41)^(AO9-1) -> 0 | AP39: =AP38*(1+Assumptions!$D$41)^(AP9-1) -> 0 | AQ39: =AQ38*(1+Assumptions!$D$41)^(AQ9-1) -> 0 | AR39: =AR38*(1+Assumptions!$D$41)^(AR9-1) -> 0 | AS39: =AS38*(1+Assumptions!$D$41)^(AS9-1) -> 0 | AT39: =AT38*(1+Assumptions!$D$41)^(AT9-1) -> 0 | AU39: =AU38*(1+Assumptions!$D$41)^(AU9-1) -> 0 | AV39: =AV38*(1+Assumptions!$D$41)^(AV9-1) -> 0 | AW39: =AW38*(1+Assumptions!$D$41)^(AW9-1) -> 0 | AX39: =AX38*(1+Assumptions!$D$41)^(AX9-1) -> 0
A41: Total Depreciable (Inflation Adjusted nominal$) | C41: =C35+C31-C39 -> 1265899.556 | D41: =D35+D31-D39 -> 3733.273493 | E41: 3739.439298 | F41: 3745.615286 | G41: 3751.801474 | H41: 3757.997879 | I41: 4798123.759 | J41: 2579124.344 | K41: 3232298.499 | L41: 9671298.962 | M41: 2637393.967 | N41: 1682524.237 | O41: 1690055.138 | P41: 1697606.325 | Q41: 1705177.845 | R41: 1712769.744 | S41: 0 | T41: 0 | U41: 0 | V41: 0 | W41: 0 | X41: 0 | Y41: 0 | Z41: 0 | AA41: 0 | AB41: 0 | AC41: 0 | AD41: 0 | AE41: 0 | AF41: 0 | AG41: 0 | AH41: 0 | AI41: 0 | AJ41: 0 | AK41: 0 | AL41: 0 | AM41: 0 | AN41: 0 | AO41: 0 | AP41: 0 | AQ41: =AQ35+AQ31-AQ39 -> 0 | AR41: 0 | AS41: 0 | AT41: 0 | AU41: 0 | AV41: 0 | AW41: 0 | AX41: 0
A42: Total Installed (Inflation Adjusted nominal$) | C42: =C35+C31 -> 1276178.441 | D42: =D35+D31 -> 3733.273493 | E42: 3739.439298 | F42: 3745.615286 | G42: 3751.801474 | H42: 3757.997879 | I42: 4837053.129 | J42: 2599920.965 | K42: 3258337.21 | L42: 9749544.109 | M42: 2658293.8 | N42: 1695608.206 | O42: 1703160.716 | P42: 1710733.548 | Q42: 1718326.749 | R42: 1725940.365 | S42: 0 | T42: 0 | U42: 0 | V42: 0 | W42: 0 | X42: 0 | Y42: 0 | Z42: 0 | AA42: 0 | AB42: 0 | AC42: 0 | AD42: 0 | AE42: 0 | AF42: 0 | AG42: 0 | AH42: 0 | AI42: 0 | AJ42: 0 | AK42: 0 | AL42: 0 | AM42: 0 | AN42: 0 | AO42: 0 | AP42: 0 | AQ42: =AQ35+AQ31 -> 0 | AR42: 0 | AS42: 0 | AT42: 0 | AU42: 0 | AV42: 0 | AW42: 0 | AX42: 0
A44: ="Aggregate Expenditure ("&TEXT($C$28,"mmm-yyyy")&"$)" -> Aggregate Expenditure (Feb-2024$) | C44: =C30 -> 1276178.441 | D44: =C44+D30 -> 1276178.441 | E44: =D44+E30 -> 1276178.441 | F44: 1276178.441 | G44: 1276178.441 | H44: 1276178.441 | I44: 6061847.594 | J44: 8614204.476 | K44: 11804650.58 | L44: 21375988.88 | M44: 23928345.77 | N44: 25523568.82 | O44: 27118791.87 | P44: 28714014.92 | Q44: 30309237.97 | R44: 31904461.02 | S44: 31904461.02 | T44: 31904461.02 | U44: 31904461.02 | V44: 31904461.02 | W44: 31904461.02 | X44: 31904461.02 | Y44: 31904461.02 | Z44: 31904461.02 | AA44: 31904461.02 | AB44: 31904461.02 | AC44: 31904461.02 | AD44: 31904461.02 | AE44: 31904461.02 | AF44: 31904461.02 | AG44: 31904461.02 | AH44: 31904461.02 | AI44: 31904461.02 | AJ44: 31904461.02 | AK44: 31904461.02 | AL44: 31904461.02 | AM44: 31904461.02 | AN44: 31904461.02 | AO44: 31904461.02 | AP44: =AO44+AP30 -> 31904461.02 | AQ44: =AP44+AQ30 -> 31904461.02 | AR44: =AQ44+AR30 -> 31904461.02 | AS44: =AR44+AS30 -> 31904461.02 | AT44: =AS44+AT30 -> 31904461.02 | AU44: =AT44+AU30 -> 31904461.02 | AV44: =AU44+AV30 -> 31904461.02 | AW44: =AV44+AW30 -> 31904461.02 | AX44: 31904461.02
A47: ="Depreciable Cost ("&TEXT(C28,"mmm-yyyy")&"$)" -> Depreciable Cost (Feb-2024$) | B47: =NPV(Assumptions!D40,'Construction CF'!C41:AX41) -> 30557660.58
A48: Depreciable Cost (2025$) | B48: =B47*((1+Assumptions!D41)^('Construction CF'!$B$8)) -> 31375235.79
A49: Installed Cost (2025$) | B49: =NPV(Assumptions!D40,'Construction CF'!C42:AX42)*((1+Assumptions!D41)^('Construction CF'!$B$8)) -> 31625641.15

Sheet Model
B2: Results | C2: ='Controls & Results'!D8 -> Solar - ORTP
B4: 2025$ | C4: NPV | D4: $/kW-yr | E4: $/kW-mo
B5: Revenue
B6: Pay for Performance | C6: =NPV(Assumptions!$D$39,PFP!D6:W6) -> 1041337.779 | D6: =-PMT(Assumptions!$D$39,20,C6)/(Assumptions!$D$15*1000) -> 4.293601153 | E6: =D6/12 -> 0.3578000961
B7: Scarcity Adder | C7: =NPV(Assumptions!$D$39,Scarcity!D6:W6) -> 1629201.803 | D7: =-PMT(Assumptions!$D$39,20,C7)/(Assumptions!$D$15*1000) -> 6.71745795 | E7: =D7/12 -> 0.5597881625
B8: E&AS | C8: =-PV(Assumptions!$D$39,20,'E&AS'!D6) -> 14454926.54 | D8: =-PMT(Assumptions!$D$39,20,C8)/(Assumptions!$D$15*1000) -> 59.5999593 | E8: =D8/12 -> 4.966663275
B9: ESI | C9: =-PV(Assumptions!$D$39,20,ESI!D7) -> 32133.05597 | D9: =-PMT(Assumptions!$D$39,20,C9)/(Assumptions!$D$15*1000) -> 0.1324896964 | E9: =D9/12 -> 0.01104080803
B10: REC | C10: =-PV(Assumptions!$D$39,20,(Assumptions!$D$20*Assumptions!$D$18*8760*Assumptions!$D$16)) -> 10714365.19 | D10: =-PMT(Assumptions!$D$39,20,C10)/(Assumptions!$D$15*1000) -> 44.1770304 | E10: 3.6814192
B11: Capacity Revenue | C11: =-PV(Assumptions!$D$39,20,(C35*12*1000*Assumptions!$D$15)) -> 8645294.7 | D11: =-PMT(Assumptions!$D$39,20,C11)/(Assumptions!$D$15*1000) -> 35.64592397 | E11: 2.970493664
B12: Total Revenue | C12: =SUM(C6:C11) -> 36517259.06 | D12: =SUM(D6:D11) -> 150.5664625 | E12: =SUM(E6:E11) -> 12.54720521
B14: Expenses
B15: Property Taxes | C15: =PV(Assumptions!$D$39,20,-(AVERAGE(Depreciation!$C$79:$V$79)*Assumptions!$D$12)) -> 342123.7522 | D15: =-PMT(Assumptions!$D$39,20,C15)/(Assumptions!$D$15*1000) -> 1.410630601 | E15: =D15/12 -> 0.1175525501
B16: Site Leasing | C16: =PV(Assumptions!$D$39,20,-(Assumptions!$D$14*Assumptions!$D$19)) -> 2419261.588 | D16: =-PMT(Assumptions!$D$39,20,C16)/(Assumptions!$D$15*1000) -> 9.975 | E16: =D16/12 -> 0.83125
B17: Insurance | C17: =PV(Assumptions!$D$39,20,-(Assumptions!$D$13*'Construction CF'!$B$49)) -> 1150536.825 | D17: =-PMT(Assumptions!$D$39,20,C17)/(Assumptions!$D$15*1000) -> 4.743846173 | E17: 0.3953205144
B18: Fixed O&M (LTSA plus ongoing O&M) | C18: =PV(Assumptions!$D$39,20,-(Assumptions!$D$15*1000*Assumptions!$D$58)) -> 3823833.66 | D18: =-PMT(Assumptions!$D$39,20,C18)/(Assumptions!$D$15*1000) -> 15.76627387 | E18: 1.313856156
B19: Subtotal - Fixed Expenses | C19: =SUM(C15:C18) -> 7735755.826 | D19: =SUM(D15:D18) -> 31.89575064 | E19: =SUM(E15:E18) -> 2.65797922
B21: Net Income
B22: Operating Income | C22: =NPV(Assumptions!$D$39,Model!C46:V46) -> 588881.2626 | D22: =-PMT(Assumptions!$D$39,20,C22)/(Assumptions!$D$15*1000) -> 2.428051031 | E22: =D22/12 -> 0.2023375859
B23: Net Income Taxes | C23: =NPV(Assumptions!$D$39,Model!C50:V50) -> -2844137.92 | D23: =-PMT(Assumptions!$D$39,20,C23)/(Assumptions!$D$15*1000) -> -11.72683264 | E23: =D23/12 -> -0.9772360531
B24: Net Income | C24: =C22-C23 -> 3433019.182 | D24: =D22-D23 -> 14.15488367 | E24: =E22-E23 -> 1.179573639
B26: Operating Cash Flow | C26: =C24+NPV(Assumptions!$D$39,Depreciation!C74:V74)+Depreciation!$V$77*(1/(1+Assumptions!$D$39)^20) -> 31625641.15 | D26: =-PMT(Assumptions!$D$39,20,C26)/(Assumptions!$D$15*1000) -> 130.3975445 | E26: =D26/12 -> 10.86646204
B27: Less: Installed Cost | C27: ='Construction CF'!B49*-1 -> -31625641.15 | D27: =-PMT(Assumptions!$D$39,20,C27)/(Assumptions!$D$15*1000) -> -130.3975445 | E27: =D27/12 -> -10.86646204
B28: NPV | C28: =SUM(C26:C27) -> 0 | D28: =SUM(D26:D27) -> 0 | E28: =SUM(E26:E27) -> 0
B30: Levelized Annual Capacity Revenue Requirement After Tax | C30: =PMT(Assumptions!$D$39,20,C28,0,0) -> 0 | D30: =C30/(Assumptions!$D$15*1000) -> 0 | E30: =C30/(Assumptions!$D$15*1000)/12 -> 0
B31: Levelized Annual Capacity Revenue Requirement Before Tax | C31: =C30/(1-Assumptions!D30) -> 0 | D31: =C31/(Assumptions!$D$15*1000) -> 0 | E31: =C31/(Assumptions!$D$15*1000)/12 -> 0
B34: NPV ($/kW-month) | C34: =C31/(Assumptions!D15*1000)/12 -> 0 | D34: Installed
B35: Net CONE ($/kW-month)1 | C35: 2.970493664 | D35: Installed
B37: Net CONE ($/kW-month) | C37: =C35/Assumptions!D17 -> 17.270312 | D37: Qualified
B42: Tax Calculation and Cash Flow
B44: 2025$ | C44: 2025 | D44: =C44+1 -> 2026 | E44: 2027 | F44: 2028 | G44: =F44+1 -> 2029 | H44: 2030 | I44: 2031 | J44: 2032 | K44: 2033 | L44: 2034 | M44: 2035 | N44: 2036 | O44: 2037 | P44: 2038 | Q44: 2039 | R44: 2040 | S44: 2041 | T44: =S44+1 -> 2042 | U44: =T44+1 -> 2043 | V44: =U44+1 -> 2044
B46: Operating Income | C46: =(Scarcity!D6+PFP!D6+'E&AS'!$D$6+ESI!$D$7+($C$35*12*1000*Assumptions!$D$15)-PMT(Assumptions!$D$39,20,Model!$C$10)+PMT(Assumptions!$D$39,20,Model!$C$19)-Depreciation!C74) -> -13404455.15 | D46: =(Scarcity!E6+PFP!E6+'E&AS'!$D$6+ESI!$D$7+($C$35*12*1000*Assumptions!$D$15)-PMT(Assumptions!$D$39,20,Model!$C$10)+PMT(Assumptions!$D$39,20,Model!$C$19)-Depreciation!D74) -> -3821192.326 | E46: =(Scarcity!F6+PFP!F6+'E&AS'!$D$6+ESI!$D$7+($C$35*12*1000*Assumptions!$D$15)-PMT(Assumptions!$D$39,20,Model!$C$10)+PMT(Assumptions!$D$39,20,Model!$C$19)-Depreciation!E74) -> -1336164.622 | F46: =(Scarcity!G6+PFP!G6+'E&AS'!$D$6+ESI!$D$7+($C$35*12*1000*Assumptions!$D$15)-PMT(Assumptions!$D$39,20,Model!$C$10)+PMT(Assumptions!$D$39,20,Model!$C$19)-Depreciation!F74) -> 152983.8921 | G46: =(Scarcity!H6+PFP!H6+'E&AS'!$D$6+ESI!$D$7+($C$35*12*1000*Assumptions!$D$15)-PMT(Assumptions!$D$39,20,Model!$C$10)+PMT(Assumptions!$D$39,20,Model!$C$19)-Depreciation!G74) -> 148263.5846 | H46: =(Scarcity!I6+PFP!I6+'E&AS'!$D$6+ESI!$D$7+($C$35*12*1000*Assumptions!$D$15)-PMT(Assumptions!$D$39,20,Model!$C$10)+PMT(Assumptions!$D$39,20,Model!$C$19)-Depreciation!H74) -> 1264108.253 | I46: =(Scarcity!J6+PFP!J6+'E&AS'!$D$6+ESI!$D$7+($C$35*12*1000*Assumptions!$D$15)-PMT(Assumptions!$D$39,20,Model!$C$10)+PMT(Assumptions!$D$39,20,Model!$C$19)-Depreciation!I74) -> 2380043.661 | J46: =(Scarcity!K6+PFP!K6+'E&AS'!$D$6+ESI!$D$7+($C$35*12*1000*Assumptions!$D$15)-PMT(Assumptions!$D$39,20,Model!$C$10)+PMT(Assumptions!$D$39,20,Model!$C$19)-Depreciation!J74) -> 2375595.61 | K46: =(Scarcity!L6+PFP!L6+'E&AS'!$D$6+ESI!$D$7+($C$35*12*1000*Assumptions!$D$15)-PMT(Assumptions!$D$39,20,Model!$C$10)+PMT(Assumptions!$D$39,20,Model!$C$19)-Depreciation!K74) -> 2371234.776 | L46: =(Scarcity!M6+PFP!M6+'E&AS'!$D$6+ESI!$D$7+($C$35*12*1000*Assumptions!$D$15)-PMT(Assumptions!$D$39,20,Model!$C$10)+PMT(Assumptions!$D$39,20,Model!$C$19)-Depreciation!L74) -> 2366959.448 | M46: =(Scarcity!N6+PFP!N6+'E&AS'!$D$6+ESI!$D$7+($C$35*12*1000*Assumptions!$D$15)-PMT(Assumptions!$D$39,20,Model!$C$10)+PMT(Assumptions!$D$39,20,Model!$C$19)-Depreciation!M74) -> 2362767.95 | N46: =(Scarcity!O6+PFP!O6+'E&AS'!$D$6+ESI!$D$7+($C$35*12*1000*Assumptions!$D$15)-PMT(Assumptions!$D$39,20,Model!$C$10)+PMT(Assumptions!$D$39,20,Model!$C$19)-Depreciation!N74) -> 2358658.638 | O46: =(Scarcity!P6+PFP!P6+'E&AS'!$D$6+ESI!$D$7+($C$35*12*1000*Assumptions!$D$15)-PMT(Assumptions!$D$39,20,Model!$C$10)+PMT(Assumptions!$D$39,20,Model!$C$19)-Depreciation!O74) -> 2354629.901 | P46: =(Scarcity!Q6+PFP!Q6+'E&AS'!$D$6+ESI!$D$7+($C$35*12*1000*Assumptions!$D$15)-PMT(Assumptions!$D$39,20,Model!$C$10)+PMT(Assumptions!$D$39,20,Model!$C$19)-Depreciation!P74) -> 2350680.159 | Q46: =(Scarcity!R6+PFP!R6+'E&AS'!$D$6+ESI!$D$7+($C$35*12*1000*Assumptions!$D$15)-PMT(Assumptions!$D$39,20,Model!$C$10)+PMT(Assumptions!$D$39,20,Model!$C$19)-Depreciation!Q74) -> 2346807.863 | R46: =(Scarcity!S6+PFP!S6+'E&AS'!$D$6+ESI!$D$7+($C$35*12*1000*Assumptions!$D$15)-PMT(Assumptions!$D$39,20,Model!$C$10)+PMT(Assumptions!$D$39,20,Model!$C$19)-Depreciation!R74) -> 2343011.494 | S46: =(Scarcity!T6+PFP!T6+'E&AS'!$D$6+ESI!$D$7+($C$35*12*1000*Assumptions!$D$15)-PMT(Assumptions!$D$39,20,Model!$C$10)+PMT(Assumptions!$D$39,20,Model!$C$19)-Depreciation!S74) -> 2339289.564 | T46: =(Scarcity!U6+PFP!U6+'E&AS'!$D$6+ESI!$D$7+($C$35*12*1000*Assumptions!$D$15)-PMT(Assumptions!$D$39,20,Model!$C$10)+PMT(Assumptions!$D$39,20,Model!$C$19)-Depreciation!T74) -> 2335640.613 | U46: =(Scarcity!V6+PFP!V6+'E&AS'!$D$6+ESI!$D$7+($C$35*12*1000*Assumptions!$D$15)-PMT(Assumptions!$D$39,20,Model!$C$10)+PMT(Assumptions!$D$39,20,Model!$C$19)-Depreciation!U74) -> 2332063.21 | V46: =(Scarcity!W6+PFP!W6+'E&AS'!$D$6+ESI!$D$7+($C$35*12*1000*Assumptions!$D$15)-PMT(Assumptions!$D$39,20,Model!$C$10)+PMT(Assumptions!$D$39,20,Model!$C$19)-Depreciation!V74) -> 2328555.952
B47: Income Taxes | C47: =IF(C46>0,C46*Assumptions!$D$30,0) -> 0 | D47: =IF(D46>0,D46*Assumptions!$D$30,0) -> 0 | E47: =IF(E46>0,E46*Assumptions!$D$30,0) -> 0 | F47: =IF(F46>0,F46*Assumptions!$D$30,0) -> 41190.91294 | G47: =IF(G46>0,G46*Assumptions!$D$30,0) -> 39919.97017 | H47: =IF(H46>0,H46*Assumptions!$D$30,0) -> 340361.147 | I47: =IF(I46>0,I46*Assumptions!$D$30,0) -> 640826.7557 | J47: =IF(J46>0,J46*Assumptions!$D$30,0) -> 639629.118 | K47: =IF(K46>0,K46*Assumptions!$D$30,0) -> 638454.9633 | L47: =IF(L46>0,L46*Assumptions!$D$30,0) -> 637303.8313 | M47: =IF(M46>0,M46*Assumptions!$D$30,0) -> 636175.2705 | N47: =IF(N46>0,N46*Assumptions!$D$30,0) -> 635068.8383 | O47: =IF(O46>0,O46*Assumptions!$D$30,0) -> 633984.1009 | P47: =IF(P46>0,P46*Assumptions!$D$30,0) -> 632920.6328 | Q47: =IF(Q46>0,Q46*Assumptions!$D$30,0) -> 631878.0171 | R47: =IF(R46>0,R46*Assumptions!$D$30,0) -> 630855.8448 | S47: =IF(S46>0,S46*Assumptions!$D$30,0) -> 629853.7151 | T47: =IF(T46>0,T46*Assumptions!$D$30,0) -> 628871.235 | U47: =IF(U46>0,U46*Assumptions!$D$30,0) -> 627908.0192 | V47: =IF(V46>0,V46*Assumptions!$D$30,0) -> 626963.69
B48: Tax Benefit | C48: =IF(C46<0,-C46*Assumptions!$D$30,0) -> 3609149.55 | D48: =IF(D46<0,-D46*Assumptions!$D$30,0) -> 1028856.034 | E48: =IF(E46<0,-E46*Assumptions!$D$30,0) -> 359762.3244 | F48: =IF(F46<0,-F46*Assumptions!$D$30,0) -> 0 | G48: =IF(G46<0,-G46*Assumptions!$D$30,0) -> 0 | H48: =IF(H46<0,-H46*Assumptions!$D$30,0) -> 0 | I48: =IF(I46<0,-I46*Assumptions!$D$30,0) -> 0 | J48: =IF(J46<0,-J46*Assumptions!$D$30,0) -> 0 | K48: =IF(K46<0,-K46*Assumptions!$D$30,0) -> 0 | L48: =IF(L46<0,-L46*Assumptions!$D$30,0) -> 0 | M48: =IF(M46<0,-M46*Assumptions!$D$30,0) -> 0 | N48: =IF(N46<0,-N46*Assumptions!$D$30,0) -> 0 | O48: =IF(O46<0,-O46*Assumptions!$D$30,0) -> 0 | P48: =IF(P46<0,-P46*Assumptions!$D$30,0) -> 0 | Q48: =IF(Q46<0,-Q46*Assumptions!$D$30,0) -> 0 | R48: =IF(R46<0,-R46*Assumptions!$D$30,0) -> 0 | S48: =IF(S46<0,-S46*Assumptions!$D$30,0) -> 0 | T48: =IF(T46<0,-T46*Assumptions!$D$30,0) -> 0 | U48: =IF(U46<0,-U46*Assumptions!$D$30,0) -> 0 | V48: =IF(V46<0,-V46*Assumptions!$D$30,0) -> 0
B49: ITC | C49: ='Construction CF'!B49*Assumptions!D21 -> 3162564.115
B50: Net Income Taxes | C50: =C47-C48-C49 -> -6771713.666 | D50: =D47-D48-D49 -> -1028856.034 | E50: -359762.3244 | F50: 41190.91294 | G50: 39919.97017 | H50: 340361.147 | I50: 640826.7557 | J50: 639629.118 | K50: 638454.9633 | L50: 637303.8313 | M50: 636175.2705 | N50: 635068.8383 | O50: 633984.1009 | P50: 632920.6328 | Q50: 631878.0171 | R50: 630855.8448 | S50: 629853.7151 | T50: 628871.235 | U50: 627908.0192 | V50: 626963.69
B54: Notes:
B55: 1. Net CONE (Installed) in this cell is calculated and pasted when the model is run, based on an NPV of zero.

Sheet Capital Costs
A1: Capital Costs | B1: 2019$ | C1: 2019$ | D1: 2019$ | E1: 2019$ | F1: 2019$ | G1: 2019$ | H1: 2019$ | I1: 2019$ | J1: 2019$ | K1: 2019$ | M1: Constant$ At Beginning of Construction
B2: =Assumptions!F$5 -> CC - CONE | C2: =Assumptions!G$5 -> SC - CONE | D2: =Assumptions!H$5 -> Aero - CONE | E2: =Assumptions!I$5 -> CC - ORTP | F2: =Assumptions!J$5 -> SC - ORTP | G2: =Assumptions!K$5 -> Onshore Wind - ORTP | H2: =Assumptions!L$5 -> Offshore Wind - ORTP | I2: =Assumptions!M$5 -> Solar - ORTP | J2: =Assumptions!N$5 -> Battery - ORTP | K2: =Assumptions!O$5 -> Co-located Resource - ORTP | M2: =B2 -> CC - CONE | N2: SC - CONE | O2: Aero - CONE | P2: CC - ORTP | Q2: SC - ORTP | R2: Onshore Wind - ORTP | S2: Offshore Wind - ORTP | T2: Solar - ORTP | U2: Battery - ORTP | V2: Co-located Resource - ORTP
A3: Cost Component | B3: 7HA.02 Combined Cycle (CONE) | C3: 7HA.02 Simple Cycle (CONE) | D3: LM6000 PF+ | E3: 7HA.02 Combined Cycle (ORTP) | F3: 7HA.02 Simple Cycle (ORTP) | G3: Onshore Wind (ORTP) | H3: Offshore Wind | I3: Solar | J3: Battery | K3: Co-located Resource | L3: BLS PPI Escalation Rate | M3: 7HA.02 Combined Cycle (CONE) | N3: 7HA.02 Simple Cycle (CONE) | O3: LM6000 PF+ | P3: 7HA.02 Combined Cycle (ORTP) | Q3: 7HA.02 Simple Cycle (ORTP) | R3: Onshore Wind (ORTP) | S3: Offshore Wind | T3: Solar | U3: Battery | V3: Co-located Resource
A4: Construction Months | B4: =COUNTIF('Construction CF'!$C13:$AX13,"<>"&"") -> 28 | C4: =COUNTIF('Construction CF'!$C14:$AX14,"<>"&"") -> 21 | D4: =COUNTIF('Construction CF'!$C15:$AX15,"<>"&"") -> 17 | E4: =COUNTIF('Construction CF'!$C16:$AX16,"<>"&"") -> 28 | F4: =COUNTIF('Construction CF'!$C17:$AX17,"<>"&"") -> 21 | G4: =COUNTIF('Construction CF'!$C18:$AX18,"<>"&"") -> 21 | H4: =COUNTIF('Construction CF'!$C19:$AX19,"<>"&"") -> 48 | I4: =COUNTIF('Construction CF'!$C20:$AX20,"<>"&"") -> 16 | J4: =COUNTIF('Construction CF'!$C21:$AX21,"<>"&"") -> 17 | K4: =COUNTIF('Construction CF'!$C22:$AX22,"<>"&"") -> 11
A5: Years to Escalate to Beginning of Construction | B5: =2025-(B4/12)-2019 -> 3.666666667 | C5: =2025-(C4/12)-2019 -> 4.25 | D5: 4.583333333 | E5: 3.666666667 | F5: 4.25 | G5: 4.25 | H5: 2 | I5: 4.666666667 | J5: 4.583333333 | K5: 5.083333333 | M5: =TEXT(EDATE(45809,-B$4),"mmm yyyy")&" $" -> Feb 2023 $ | N5: Sep 2023 $ | O5: Jan 2024 $ | P5: Feb 2023 $ | Q5: Sep 2023 $ | R5: Sep 2023 $ | S5: Jun 2021 $ | T5: Feb 2024 $ | U5: Jan 2024 $ | V5: Jul 2024 $
A7: EPC Costs | L7: =Assumptions!$D$52 -> 0.007
A8: GRAND TOTAL CIVIL/ STRUCTURAL/ARCHITECTURAL | B8: 49040011.78 | C8: 18868655.91 | D8: 13966356.17 | E8: 49040011.78 | F8: 18868655.91 | G8: =78450000+5625000 -> 84075000 | I8: 1291792.397 | J8: 423748.4924 | K8: 613487.5599 | M8: =B8*(1+$L$7)^B$5 -> 50310498.97 | N8: =C8*(1+$L$7)^C$5 -> 19436417.29 | O8: =D8*(1+$L$7)^D$5 -> 14420097.16 | P8: =E8*(1+$L$7)^E$5 -> 50310498.97 | Q8: 19436417.29 | R8: 86604832.45 | S8: 0 | T8: =I8*(1+$L$7)^I$5 -> 1334535.876 | U8: =J8*(1+$L$7)^J$5 -> 437515.2944 | V8: =K8*(1+$L$7)^K$5 -> 635631.7311
A9: GRAND TOTAL MECHANICAL COSTS | B9: 267032120.1 | C9: 137734983.9 | D9: 73833022 | E9: 267032120.1 | F9: 137734983.9 | G9: 4300000 | M9: =B9*(1+$L$7)^B$5 -> 273950162.6 | N9: 141879455.3 | O9: 76231719.85 | P9: 273950162.6 | Q9: 141879455.3 | R9: 4429387.803 | S9: 0 | T9: 0 | U9: =J9*(1+$L$7)^J$5 -> 0 | V9: =K9*(1+$L$7)^K$5 -> 0
A10: GRAND TOTAL ELECTRICAL/ INSTRUMENTATION AND CONTROLS COST | B10: 54036721.76 | C10: 27852487.41 | D10: 19461005.72 | E10: 54036721.76 | F10: 27852487.41 | G10: 11328780 | I10: 1578383.76 | J10: 1293968.65 | K10: 531828.2579 | M10: 55436659.48 | N10: 28690573.96 | O10: 20093257.68 | P10: 55436659.48 | Q10: 28690573.96 | R10: 11669665.11 | S10: 0 | T10: =I10*(1+$L$7)^I$5 -> 1630610.119 | U10: 1336007.29 | V10: 551024.8917
A11: GRAND TOTAL CONSTRUCTION MANAGEMENT | B11: 11414582 | C11: 7590308.2 | D11: 5051272 | E11: 11414582 | F11: 7590308.2 | G11: 2400000 | I11: 804249.9769 | J11: 1467930.466 | K11: 818923.9098 | M11: 11710301.34 | N11: 7818701.991 | O11: 5215378.452 | P11: 11710301.34 | Q11: 7818701.991 | R11: 2472216.448 | S11: 0 | T11: =I11*(1+$L$7)^I$5 -> 830861.4062 | U11: 1515620.802 | V11: 848483.4191
A12: GRAND TOTAL OTHER PROJECT COSTS | B12: 29015000 | C12: 12450000 | D12: 8125000 | E12: 29015000 | F12: 12450000 | M12: 29766696.1 | N12: 12824622.83 | O12: 8388966.17 | P12: 29766696.1 | Q12: 12824622.83 | R12: 0 | S12: 0 | T12: =I12*(1+$L$7)^I$5 -> 0 | U12: 0 | V12: 0
S13: 0
A14: Medium Voltage Collection System | G14: 5730000 | M14: =B14*(1+$L$7)^B$5 -> 0 | N14: =C14*(1+$L$7)^C$5 -> 0 | O14: =D14*(1+$L$7)^D$5 -> 0 | P14: =E14*(1+$L$7)^E$5 -> 0 | Q14: =F14*(1+$L$7)^F$5 -> 0 | R14: =G14*(1+$L$7)^G$5 -> 5902416.77 | S14: 0 | T14: =I14*(1+$L$7)^I$5 -> 0 | U14: 0 | V14: =K14*(1+$L$7)^K$5 -> 0
A15: Project Substation and O&M Building | G15: 5350000 | J15: 6828904.754 | M15: 0 | N15: 0 | O15: 0 | P15: 0 | Q15: 0 | R15: 5510982.499 | S15: 0 | T15: 0 | U15: 7050763.194 | V15: 0
A16: Meterological Towers | G16: 421000 | M16: 0 | N16: 0 | O16: 0 | P16: 0 | Q16: 0 | R16: 433667.9686 | S16: 0 | T16: 0 | U16: 0 | V16: 0
A17: Offshore Substation Platform | H17: 465000000 | M17: 0 | N17: 0 | O17: 0 | P17: 0 | Q17: 0 | R17: 0 | S17: 471532785 | T17: 0 | U17: 0 | V17: 0
A18: Install Submarine Export Cabling | H18: 583000000 | M18: 0 | N18: 0 | O18: 0 | P18: 0 | Q18: 0 | R18: 0 | S18: 591190567 | T18: 0 | U18: 0 | V18: 0
A19: Construct Landfall Transition Box | H19: 134000000 | M19: 0 | N19: 0 | O19: 0 | P19: 0 | Q19: 0 | R19: 0 | S19: 135882566 | T19: 0 | U19: 0 | V19: 0
A20: Interarray Cabling | H20: 288000000 | M20: 0 | N20: 0 | O20: 0 | P20: 0 | Q20: 0 | R20: 0 | S20: 292046112 | T20: 0 | U20: 0 | V20: 0
A21: Major Equipment - Wind Turbines, PV Modules, PV Inverters, PV Racks, Batteries | H21: 2333000000 | I21: 15130733.84 | J21: 101550687.9 | K21: 7233943.784 | M21: 0 | N21: 0 | O21: 0 | P21: 0 | Q21: 0 | R21: 0 | S21: 2365776317 | T21: 15631387.21 | U21: 104849881.3 | V21: 7495056.968
A22: Solar SCADA & Monitoring | I22: 245333.413 | K22: 219683.5889 | M22: 0 | N22: 0 | O22: 0 | P22: 0 | Q22: 0 | R22: 0 | S22: 0 | T22: 253451.1288 | U22: 0 | V22: 227613.189
A23: Testing & Energization | I23: 143129.7923 | J23: 291725.57 | K23: 77623.54046 | M23: 0 | N23: 0 | O23: 0 | P23: 0 | Q23: 0 | R23: 0 | S23: 0 | T23: 147865.7431 | U23: 301203.1923 | V23: 80425.40489
A24: Other Indirect Costs | I24: 2476527 | J24: 10171811.09 | K24: 1719841.152 | M24: 0 | N24: 0 | O24: 0 | P24: 0 | Q24: 0 | R24: 0 | S24: 0 | T24: 2558471.576 | U24: 10502274.36 | V24: 1781919.766
A25: PROJECT CONTINGENCY | B25: =SUM(B7:B24)*7% -> 28737690.49 | C25: 14314750.48 | D25: 8430565.912 | E25: 28737690.49 | F25: 14314750.48 | G25: =SUM(G8:G24)*7% -> 7952334.6 | H25: =SUM(H10:H24)*10% -> 380300000 | I25: =(22464508)*5% -> 1123225.4 | J25: 5834216.541 | K25: 1020709.134 | M25: 29482202.29 | N25: 14745483.99 | O25: 8704459.351 | P25: 29482202.29 | Q25: 14745483.99 | R25: 8191621.833 | S25: 385642834.7 | T25: 1160391.249 | U25: 6023759.408 | V25: 1057552.192
A26: EPC CONTRACTOR FEE | B26: 30749328.83 | C26: 15316783.01 | D26: 9020705.526 | E26: 30749328.83 | F26: 15316783.01 | M26: 31545956.45 | N26: 15777667.87 | O26: 9313771.506 | P26: 31545956.45 | Q26: 15777667.87 | R26: 0 | S26: 0 | T26: 0 | U26: 0 | V26: 0
A27: Owners Development Costs | G27: 320000 | I27: 743013.5898 | J27: 964833.5604 | K27: 650651.1966 | M27: 0 | N27: 0 | O27: 0 | P27: 0 | Q27: 0 | R27: 329628.8598 | S27: 0 | T27: 767598.7987 | U27: 996179.2121 | V27: 674136.8097
A28: Total EPC | B28: =SUM(B8:B27) -> 470025454.9 | C28: 234127968.9 | D28: 137887927.3 | E28: 470025454.9 | F28: 234127968.9 | G28: 121877114.6 | H28: =SUM(H8:H27) -> 4183300000 | I28: =SUM(I8:I27) -> 23536389.17 | J28: =SUM(J8:J27) -> 128827827.1 | K28: =SUM(K8:K27) -> 12886692.12 | M28: =SUM(M7:M27) -> 482202477.2 | N28: =SUM(N7:N27) -> 241172923.2 | O28: 142367650.2 | P28: 482202477.2 | Q28: 241172923.2 | R28: 125544419.7 | S28: 4242071182 | T28: 24315173.1 | U28: 133013204.1 | V28: 13351844.37
A30: Non-EPC Costs | L30: =Assumptions!$D$53 -> 0.019
A31: Owner's Development Costs (Services) | H31: 217000000 | M31: =B31*(1+$L$30)^B$5 -> 0 | N31: =C31*(1+$L$30)^C$5 -> 0 | O31: 0 | P31: 0 | Q31: 0 | R31: 0 | S31: =H31*(1+$L$30)^H$5 -> 225324337 | T31: 0 | U31: 0 | V31: 0
A32: Owner's Contingency | B32: 0 | C32: 0 | D32: 0 | E32: 0 | F32: 0 | G32: =5%*G27 -> 16000 | H32: =H31*10% -> 21700000 | I32: =$I$27*10% -> 74301.35898 | J32: =$J$27*5% -> 48241.67802 | K32: 65065.11966 | M32: 0 | N32: 0 | O32: 0 | P32: 0 | Q32: 0 | R32: 17332.46232 | S32: 22532433.7 | T32: 81122.80317 | U32: 52588.09221 | V32: 71597.90831
A33: Electrical Interconnection | B33: 7000000 | C33: 7000000 | D33: 7000000 | E33: 7000000 | F33: 7000000 | G33: 7000000 | H33: 70000000 | I33: 5700000 | J33: 5400000 | K33: 817000 | M33: =B33*(1+$L$30)^B$5 -> 7500151.707 | N33: 7582952.264 | O33: 7630676.638 | P33: 7500151.707 | Q33: 7582952.264 | R33: 7582952.264 | S33: 72685270 | T33: 6223304.451 | U33: 5886521.978 | V33: 899029.9472
A34: Electrical System Upgrade Costs/Substation Upgrades | B34: 20000000 | C34: =B34*C45/B45 -> 13500897.67 | D34: 0 | E34: 18000000 | F34: 12000000 | G34: 38000000 | H34: 0 | M34: 21429004.88 | N34: 14625237.5 | O34: 0 | P34: 19286104.39 | Q34: 12999346.74 | R34: 41164598.01 | S34: 0 | T34: 0 | U34: 0 | V34: 0
A35: Gas Interconnection | B35: 11000000 | C35: 11000000 | D35: 11000000 | E35: 10000000 | F35: 10000000 | M35: 11785952.68 | N35: 11916067.84 | O35: 11991063.29 | P35: 10714502.44 | Q35: 10832788.95 | R35: 0 | S35: 0 | T35: 0 | U35: 0 | V35: 0
A36: Fuel Inventories | B36: =1500000*3 -> 4500000 | C36: =1500000*3 -> 4500000 | D36: =500000*8.9 -> 4450000 | E36: =1500000*3 -> 4500000 | F36: =1500000*3 -> 4500000 | L36: =Assumptions!$D$54 -> 0.054 | M36: =B36*(1+$L36)^B$5 -> 5457093.819 | N36: =C36*(1+$L36)^C$5 -> 5627106.179 | O36: =D36*(1+$L36)^D$5 -> 5662994.556 | P36: 5457093.819 | Q36: 5627106.179 | R36: 0 | S36: 0 | T36: 0 | U36: 0 | V36: 0
A37: Financing Fees (4% of costs financed through debt) | B37: =4%*B28 -> 18801018.2 | C37: =4%*C28 -> 9365118.756 | D37: 5515517.093 | E37: 18801018.2 | F37: 9365118.756 | G37: 4875084.584 | H37: =4%*H28 -> 167332000 | I37: =4%*I28 -> 941455.5669 | J37: 5153113.083 | K37: 515467.685 | M37: =B37*(1+$L$30)^B$5 -> 20144355.53 | N37: 10145035.5 | O37: 6012446.776 | P37: 20144355.53 | Q37: 10145035.5 | R37: 5281076.241 | S37: 173751022.9 | T37: 1027888.53 | U37: 5617391.373 | V37: 567222.6262
A38: Working Capital (1% of EPC costs) | B38: =1%*B28 -> 4700254.549 | C38: =1%*C28 -> 2341279.689 | D38: =1%*D28 -> 1378879.273 | E38: =1%*E28 -> 4700254.549 | F38: =1%*F28 -> 2341279.689 | G38: 1218771.146 | H38: =1%*H28 -> 41833000 | I38: 235363.8917 | J38: 1288278.271 | K38: 128866.9212 | M38: 5036088.883 | N38: 2536258.874 | O38: 1503111.694 | P38: 5036088.883 | Q38: 2536258.874 | R38: 1320269.06 | S38: 43437755.71 | T38: 256972.1325 | U38: 1404347.843 | V38: 141805.6565
A39: Total Non-EPC | B39: =SUM(B31:B38) -> 66001272.75 | C39: 47707296.11 | D39: =SUM(D31:D38) -> 29344396.37 | E39: 63001272.75 | F39: 45206398.45 | G39: 51109855.73 | H39: 517865000 | I39: 6951120.818 | J39: 11889633.03 | K39: 1526399.726 | M39: =SUM(M31:M38) -> 71352647.5 | N39: =SUM(N31:N38) -> 52432658.16 | O39: 32800292.95 | P39: 68138296.77 | Q39: 49723488.5 | R39: 55366228.03 | S39: 537730819.3 | T39: 7589287.917 | U39: 12960849.29 | V39: 1679656.138
A42: Total Overnight Capital Costs | B42: =B28+B39 -> 536026727.7 | C42: =C28+C39 -> 281835265 | D42: 167232323.7 | E42: 533026727.7 | F42: 279334367.4 | G42: 172986970.3 | H42: 4701165000 | I42: 30487509.99 | J42: 140717460.1 | K42: 14413091.85 | M42: 553555124.7 | N42: 293605581.4 | O42: 175167943.1 | P42: 550340774 | Q42: 290896411.7 | R42: 180910647.8 | S42: 4779802001 | T42: 31904461.02 | U42: 145974053.3 | V42: 15031500.51
A44: $/KW | B44: =B42/(B45*1000) -> 962.3460102 | C44: =C42/(C45*1000) -> 749.5618751 | D44: =D42/(D45*1000) -> 1706.452283 | E44: 956.9600138 | F44: 742.9105515 | G44: 2096.811762 | H44: 5876.45625 | I44: 1524.3755 | J44: 938.1164006 | K44: 1441.309185 | M44: =M42/(M45*1000) -> 993.8153047 | N44: =N42/(N45*1000) -> 780.8659079 | O44: 1787.427991 | P44: =P42/(P45*1000) -> 988.0444775 | Q44: 773.6606695 | R44: 2192.856337 | S44: 5974.752501 | T44: 1595.223051 | U44: 973.1603557 | V44: 1503.150051
A45: Installed Capacity (MW) | B45: =INDEX(Assumptions!$C$5:$O$15,MATCH(Assumptions!$C$15,Assumptions!$C$5:$C$15,0),MATCH('Capital Costs'!B$2,Assumptions!$C$5:$O$5,0)) -> 557 | C45: =INDEX(Assumptions!$C$5:$O$15,MATCH(Assumptions!$C$15,Assumptions!$C$5:$C$15,0),MATCH('Capital Costs'!C$2,Assumptions!$C$5:$O$5,0)) -> 376 | D45: =INDEX(Assumptions!$C$5:$O$15,MATCH(Assumptions!$C$15,Assumptions!$C$5:$C$15,0),MATCH('Capital Costs'!D$2,Assumptions!$C$5:$O$5,0)) -> 98 | E45: =INDEX(Assumptions!$C$5:$O$15,MATCH(Assumptions!$C$15,Assumptions!$C$5:$C$15,0),MATCH('Capital Costs'!E$2,Assumptions!$C$5:$O$5,0)) -> 557 | F45: =INDEX(Assumptions!$C$5:$O$15,MATCH(Assumptions!$C$15,Assumptions!$C$5:$C$15,0),MATCH('Capital Costs'!F$2,Assumptions!$C$5:$O$5,0)) -> 376 | G45: =INDEX(Assumptions!$C$5:$O$15,MATCH(Assumptions!$C$15,Assumptions!$C$5:$C$15,0),MATCH('Capital Costs'!G$2,Assumptions!$C$5:$O$5,0)) -> 82.5 | H45: =INDEX(Assumptions!$C$5:$O$15,MATCH(Assumptions!$C$15,Assumptions!$C$5:$C$15,0),MATCH('Capital Costs'!H$2,Assumptions!$C$5:$O$5,0)) -> 800 | I45: =INDEX(Assumptions!$C$5:$O$15,MATCH(Assumptions!$C$15,Assumptions!$C$5:$C$15,0),MATCH('Capital Costs'!I$2,Assumptions!$C$5:$O$5,0)) -> 20 | J45: =INDEX(Assumptions!$C$5:$O$15,MATCH(Assumptions!$C$15,Assumptions!$C$5:$C$15,0),MATCH('Capital Costs'!J$2,Assumptions!$C$5:$O$5,0)) -> 150 | K45: =INDEX(Assumptions!$C$5:$O$15,MATCH(Assumptions!$C$15,Assumptions!$C$5:$C$15,0),MATCH('Capital Costs'!K$2,Assumptions!$C$5:$O$5,0)) -> 10 | M45: =B45 -> 557 | N45: 376 | O45: 98 | P45: 557 | Q45: 376 | R45: 82.5 | S45: 800 | T45: 20 | U45: 150 | V45: 10
A46: Non-Depreciable Assets | B46: =SUM(B36,B38) -> 9200254.549 | C46: =SUM(C36,C38) -> 6841279.689 | D46: 5828879.273 | E46: 9200254.549 | F46: 6841279.689 | G46: 1218771.146 | H46: 41833000 | I46: 235363.8917 | J46: 1288278.271 | K46: 128866.9212 | M46: =SUM(M36,M38) -> 10493182.7 | N46: 8163365.053 | O46: 7166106.25 | P46: 10493182.7 | Q46: 8163365.053 | R46: 1320269.06 | S46: 43437755.71 | T46: 256972.1325 | U46: 1404347.843 | V46: 141805.6565
A47: Non-Depreciable $/kW | B47: =B46/(B45*1000) -> 16.51751266 | C47: =C46/(C45*1000) -> 18.19489279 | D47: =D46/(D45*1000) -> 59.47835993 | E47: 16.51751266 | F47: 18.19489279 | G47: 14.77298359 | H47: 52.29125 | I47: 11.76819459 | J47: 8.588521804 | K47: 12.88669212 | M47: =M46/(M45*1000) -> 18.83874812 | N47: 21.71107727 | O47: 73.12353317 | P47: 18.83874812 | Q47: 21.71107727 | R47: 16.00326134 | S47: 54.29719464 | T47: 12.84860662 | U47: 9.362318956 | V47: 14.18056565

Sheet E&AS
B1: Energy & Ancillary Services Revenue
B3: Technology | D3: ='Controls & Results'!D8 -> Solar - ORTP
B5: Year | D5: 2025
B6: E&AS Revenue (2025$) | C6: Availability | D6: =OFFSET(D9,MATCH($D$3,$B$9:$B$18,0)-1,0) -> 1191999.186
G8: FRM Sunset | H8: With FRM
B9: =Assumptions!$F$5 -> CC - CONE | C9: 0.9277 | D9: =C9*IF('Controls & Results'!$D$9="FRM Sunset",G9,H9) -> 31515894.29 | G9: 33972075.34 | H9: =G9 -> 33972075.34
B10: =Assumptions!$G$5 -> SC - CONE | C10: 0.98 | D10: =C10*IF('Controls & Results'!$D$9="FRM Sunset",G10,H10) -> 15418129.69 | G10: 12850796.57 | H10: 15732785.39
B11: =Assumptions!$H$5 -> Aero - CONE | C11: =C10 -> 0.98 | D11: =C11*IF('Controls & Results'!$D$9="FRM Sunset",G11,H11) -> 3772674.327 | G11: 2834233.662 | H11: 3849667.68
B12: =Assumptions!$I$5 -> CC - ORTP | C12: 0.9277 | D12: =C12*IF('Controls & Results'!$D$9="FRM Sunset",G12,H12) -> 28393638.36 | G12: 30606487.4 | H12: =G12 -> 30606487.4
B13: =Assumptions!$J$5 -> SC - ORTP | C13: =C10 -> 0.98 | D13: =C13*IF('Controls & Results'!$D$9="FRM Sunset",G13,H13) -> 14610108.94 | G13: 11535162.42 | H13: 14908274.43
B14: =Assumptions!$K$5 -> Onshore Wind - ORTP | C14: 1 | D14: =C14*IF('Controls & Results'!$D$9="FRM Sunset",G14,H14) -> 13364950.98 | G14: 13364950.98 | H14: =G14 -> 13364950.98
B15: =Assumptions!$L$5 -> Offshore Wind - ORTP | C15: 1 | D15: =C15*IF('Controls & Results'!$D$9="FRM Sunset",G15,H15) -> 147429477.4 | G15: 147429477.4 | H15: =G15 -> 147429477.4
B16: =Assumptions!$M$5 -> Solar - ORTP | C16: 1 | D16: =C16*IF('Controls & Results'!$D$9="FRM Sunset",G16,H16) -> 1191999.186 | G16: 1191999.186 | H16: 1191999.186
B17: =Assumptions!$N$5 -> Battery - ORTP | C17: 1 | D17: =C17*IF('Controls & Results'!$D$9="FRM Sunset",G17,H17) -> 4807527.817 | G17: 3358131.047 | H17: 4807527.817
B18: =Assumptions!$O$5 -> Co-located Resource - ORTP | C18: 1 | D18: =C18*IF('Controls & Results'!$D$9="FRM Sunset",G18,H18) -> 321554.198 | G18: 321554.198 | H18: =G18 -> 321554.198

Sheet ESI
B1: Energy Security Improvement Revenue (ESI)
B3: Technology | D3: ='Controls & Results'!D8 -> Solar - ORTP
D4: ='Controls & Results'!D9 -> With FRM
D5: ='Controls & Results'!D10 -> NEPOOL Proposal
B6: Year | D6: 2025
B7: ESI Revenue (2025$) | C7: MW | D7: =OFFSET(D10,MATCH($D$3,$B$10:$B$19,0)-1,0) -> 2649.793928 | H7: ESI Values Provided by ISO-NE
H8: ISO-NE Proposal | I8: =H8 -> ISO-NE Proposal | J8: NEPOOL Proposal | K8: =J8 -> NEPOOL Proposal
F9: Lookup Result | H9: FRM Sunset | I9: With FRM | J9: FRM Sunset | K9: With FRM | N9: ISO ESI | O9: NEPOOL ESI
B10: =Assumptions!$F$5 -> CC - CONE | C10: =Assumptions!F15 -> 557 | D10: =F10*C10*12*1000 -> 1475935.218 | F10: =INDEX($H$10:$K$19,MATCH($B10,$B$10:$B$19,0),MATCH('Controls & Results'!$D$9,ESI!H$9:I$9,0)+MATCH('Controls & Results'!$D$10,ESI!$H$8:$K$8,0)-1) -> 0.2208161606 | H10: =N13 -> 0.3212875137 | I10: =H10 -> 0.3212875137 | J10: =O13 -> 0.2208161606 | K10: =J10 -> 0.2208161606 | M10: Net CONE | N10: 2025$ | O10: 2025$
B11: =Assumptions!$G$5 -> SC - CONE | C11: 376 | D11: =F11*C11*12*1000 -> 1529355.063 | F11: =INDEX($H$10:$K$19,MATCH($B11,$B$10:$B$19,0),MATCH('Controls & Results'!$D$9,ESI!H$9:I$9,0)+MATCH('Controls & Results'!$D$10,ESI!$H$8:$K$8,0)-1) -> 0.3389528066 | H11: =N11 -> 0.4228629476 | I11: =N12 -> 0.5354791896 | J11: =O11 -> 0.3820119579 | K11: =O12 -> 0.3389528066 | M11: SC w/out FRM | N11: 0.4228629476 | O11: 0.3820119579
B12: =Assumptions!$H$5 -> Aero - CONE | C12: 98 | D12: 424576.481 | F12: =INDEX($H$10:$K$19,MATCH($B12,$B$10:$B$19,0),MATCH('Controls & Results'!$D$9,ESI!H$9:I$9,0)+MATCH('Controls & Results'!$D$10,ESI!$H$8:$K$8,0)-1) -> 0.3610344226 | H12: =N14 -> 0.4946281998 | I12: =N15 -> 0.5752260985 | J12: =O14 -> 0.3875323619 | K12: =O15 -> 0.3610344226 | M12: SC with FRM | N12: 0.5354791896 | O12: 0.3389528066
B13: =Assumptions!$I$5 -> CC - ORTP | C13: 557 | D13: 1461175.866 | F13: =INDEX($H$10:$K$19,MATCH($B13,$B$10:$B$19,0),MATCH('Controls & Results'!$D$9,ESI!H$9:I$9,0)+MATCH('Controls & Results'!$D$10,ESI!$H$8:$K$8,0)-1) -> 0.218607999 | H13: =N21 -> 0.4007813316 | I13: =H13 -> 0.4007813316 | J13: =O21 -> 0.218607999 | K13: =J13 -> 0.218607999 | M13: CC | N13: 0.3212875137 | O13: 0.2208161606
B14: =Assumptions!$J$5 -> SC - ORTP | C14: 376 | D14: 24908.06292 | F14: =INDEX($H$10:$K$19,MATCH($B14,$B$10:$B$19,0),MATCH('Controls & Results'!$D$9,ESI!H$9:I$9,0)+MATCH('Controls & Results'!$D$10,ESI!$H$8:$K$8,0)-1) -> 0.005520404016 | H14: =N19 -> 0.3632425843 | I14: =N20 -> 0.3522017762 | J14: =O19 -> 0.009936727229 | K14: =O20 -> 0.005520404016 | M14: Aero w/out FRM | N14: 0.4946281998 | O14: 0.3875323619
B15: =Assumptions!$K$5 -> Onshore Wind - ORTP | C15: 82.5 | D15: 45907.6798 | F15: =INDEX($H$10:$K$19,MATCH($B15,$B$10:$B$19,0),MATCH('Controls & Results'!$D$9,ESI!H$9:I$9,0)+MATCH('Controls & Results'!$D$10,ESI!$H$8:$K$8,0)-1) -> 0.04637139373 | H15: =N22 -> 0.07397341381 | I15: =H15 -> 0.07397341381 | J15: =O22 -> 0.04637139373 | K15: =J15 -> 0.04637139373 | M15: Aero w/FRM | N15: 0.5752260985 | O15: 0.3610344226
B16: =Assumptions!$L$5 -> Offshore Wind - ORTP | C16: 800 | D16: 529958.7855 | F16: =INDEX($H$10:$K$19,MATCH($B16,$B$10:$B$19,0),MATCH('Controls & Results'!$D$9,ESI!H$9:I$9,0)+MATCH('Controls & Results'!$D$10,ESI!$H$8:$K$8,0)-1) -> 0.05520404016 | H16: =N23 -> 0.08170197944 | I16: =H16 -> 0.08170197944 | J16: =O23 -> 0.05520404016 | K16: =J16 -> 0.05520404016
B17: =Assumptions!$M$5 -> Solar - ORTP | C17: 20 | D17: 2649.793928 | F17: =INDEX($H$10:$K$19,MATCH($B17,$B$10:$B$19,0),MATCH('Controls & Results'!$D$9,ESI!H$9:I$9,0)+MATCH('Controls & Results'!$D$10,ESI!$H$8:$K$8,0)-1) -> 0.01104080803 | H17: =N24 -> 0.02539385847 | I17: =H17 -> 0.02539385847 | J17: =O24 -> 0.01104080803 | K17: =J17 -> 0.01104080803 | N17: ISO ESI | O17: NEPOOL ESI
B18: =Assumptions!$N$5 -> Battery - ORTP | C18: 150 | D18: 1987.345446 | F18: =INDEX($H$10:$K$19,MATCH($B18,$B$10:$B$19,0),MATCH('Controls & Results'!$D$9,ESI!H$9:I$9,0)+MATCH('Controls & Results'!$D$10,ESI!$H$8:$K$8,0)-1) -> 0.001104080803 | H18: =N25 -> 0.00331224241 | I18: =N26 -> 0.001104080803 | J18: =O25 -> 0.002208161606 | K18: =O26 -> 0.001104080803 | M18: ORTPs | N18: 2025$ | O18: 2025$
B19: =Assumptions!$O$5 -> Co-located Resource - ORTP | C19: 10 | D19: 1854.855749 | F19: =INDEX($H$10:$K$19,MATCH($B19,$B$10:$B$19,0),MATCH('Controls & Results'!$D$9,ESI!H$9:I$9,0)+MATCH('Controls & Results'!$D$10,ESI!$H$8:$K$8,0)-1) -> 0.01545713124 | H19: =N27 -> 0.02097753526 | I19: =H19 -> 0.02097753526 | J19: =O27 -> 0.01545713124 | K19: =J19 -> 0.01545713124 | M19: SC w/out FRM | N19: 0.3632425843 | O19: 0.009936727229
M20: SC with FRM | N20: 0.3522017762 | O20: 0.005520404016
M21: CC | N21: 0.4007813316 | O21: 0.218607999
M22: On shore wind | N22: 0.07397341381 | O22: 0.04637139373
M23: Offshore Wind | N23: 0.08170197944 | O23: 0.05520404016
M24: Solar | N24: 0.02539385847 | O24: 0.01104080803
M25: Battery w/out FRM | N25: 0.00331224241 | O25: 0.002208161606
M26: Battery w/FRM | N26: 0.001104080803 | O26: 0.001104080803
M27: Solar/Battery | N27: 0.02097753526 | O27: 0.01545713124

Sheet PFP
B1: Pay for Performance
B3: Technology | C3: ='Controls & Results'!D8 -> Solar - ORTP
B5: Year | D5: 2025 | E5: =D5+1 -> 2026 | F5: =E5+1 -> 2027 | G5: 2028 | H5: 2029 | I5: 2030 | J5: 2031 | K5: 2032 | L5: 2033 | M5: 2034 | N5: 2035 | O5: 2036 | P5: 2037 | Q5: 2038 | R5: 2039 | S5: 2040 | T5: 2041 | U5: 2042 | V5: 2043 | W5: 2044
B6: ICAP | C6: ICAP: 2025$ | D6: =D7/(1+Assumptions!$D$36)^(D5-2025) -> 99617.028 | E6: =E7/(1+Assumptions!$D$36)^(E5-2025) -> 97663.75294 | F6: =F7/(1+Assumptions!$D$36)^(F5-2025) -> 95748.77739 | G6: =G7/(1+Assumptions!$D$36)^(G5-2025) -> 93871.35039 | H6: =H7/(1+Assumptions!$D$36)^(H5-2025) -> 92030.73567 | I6: =I7/(1+Assumptions!$D$36)^(I5-2025) -> 90226.21144 | J6: =J7/(1+Assumptions!$D$36)^(J5-2025) -> 88457.07004 | K6: =K7/(1+Assumptions!$D$36)^(K5-2025) -> 86722.61769 | L6: =L7/(1+Assumptions!$D$36)^(L5-2025) -> 85022.1742 | M6: =M7/(1+Assumptions!$D$36)^(M5-2025) -> 83355.07275 | N6: =N7/(1+Assumptions!$D$36)^(N5-2025) -> 81720.65956 | O6: =O7/(1+Assumptions!$D$36)^(O5-2025) -> 80118.29368 | P6: =P7/(1+Assumptions!$D$36)^(P5-2025) -> 78547.34675 | Q6: =Q7/(1+Assumptions!$D$36)^(Q5-2025) -> 77007.2027 | R6: =R7/(1+Assumptions!$D$36)^(R5-2025) -> 75497.25754 | S6: =S7/(1+Assumptions!$D$36)^(S5-2025) -> 74016.91916 | T6: =T7/(1+Assumptions!$D$36)^(T5-2025) -> 72565.60702 | U6: =U7/(1+Assumptions!$D$36)^(U5-2025) -> 71142.75198 | V6: =V7/(1+Assumptions!$D$36)^(V5-2025) -> 69747.79606 | W6: =W7/(1+Assumptions!$D$36)^(W5-2025) -> 68380.19222
C7: ICAP: Nominal | D7: =OFFSET(D11,MATCH($C$3,$B$11:$B$20,0)-1,0) -> 99617.028 | E7: 99617.028 | F7: 99617.028 | G7: 99617.028 | H7: 99617.028 | I7: 99617.028 | J7: 99617.028 | K7: 99617.028 | L7: 99617.028 | M7: 99617.028 | N7: 99617.028 | O7: 99617.028 | P7: 99617.028 | Q7: 99617.028 | R7: 99617.028 | S7: 99617.028 | T7: 99617.028 | U7: 99617.028 | V7: 99617.028 | W7: 99617.028
C10: Plant Capacity (MW)
B11: =Assumptions!$F$5 -> CC - CONE | C11: =Assumptions!F15 -> 557 | D11: =$H$27*12*1000*$C11 -> 3519145.801 | E11: =$H$27*12*1000*$C11 -> 3519145.801 | F11: 3519145.801 | G11: 3519145.801 | H11: =$H$27*12*1000*$C11 -> 3519145.801 | I11: 3519145.801 | J11: 3519145.801 | K11: 3519145.801 | L11: 3519145.801 | M11: 3519145.801 | N11: 3519145.801 | O11: 3519145.801 | P11: 3519145.801 | Q11: 3519145.801 | R11: 3519145.801 | S11: 3519145.801 | T11: 3519145.801 | U11: 3519145.801 | V11: 3519145.801 | W11: 3519145.801
B12: =Assumptions!$G$5 -> SC - CONE | C12: =Assumptions!G15 -> 376 | D12: =$H$28*12*1000*$C12 -> 4016835.072 | E12: 4016835.072 | F12: 4016835.072 | G12: 4016835.072 | H12: =$H$28*12*1000*$C12 -> 4016835.072 | I12: 4016835.072 | J12: 4016835.072 | K12: 4016835.072 | L12: 4016835.072 | M12: 4016835.072 | N12: 4016835.072 | O12: 4016835.072 | P12: 4016835.072 | Q12: =$H$28*12*1000*$C12 -> 4016835.072 | R12: 4016835.072 | S12: 4016835.072 | T12: 4016835.072 | U12: 4016835.072 | V12: 4016835.072 | W12: 4016835.072
B13: =Assumptions!$H$5 -> Aero - CONE | C13: =Assumptions!H15 -> 98 | D13: =$H$29*12*1000*$C13 -> 1046941.056 | E13: =$H$29*12*1000*$C13 -> 1046941.056 | F13: 1046941.056 | G13: 1046941.056 | H13: 1046941.056 | I13: 1046941.056 | J13: 1046941.056 | K13: 1046941.056 | L13: 1046941.056 | M13: 1046941.056 | N13: 1046941.056 | O13: 1046941.056 | P13: 1046941.056 | Q13: 1046941.056 | R13: 1046941.056 | S13: 1046941.056 | T13: 1046941.056 | U13: 1046941.056 | V13: 1046941.056 | W13: 1046941.056
B14: =Assumptions!$I$5 -> CC - ORTP | C14: =Assumptions!I15 -> 557 | D14: =$H$30*12*1000*$C14 -> 2774334.23 | E14: =$H$30*12*1000*$C14 -> 2774334.23 | F14: 2774334.23 | G14: 2774334.23 | H14: 2774334.23 | I14: 2774334.23 | J14: 2774334.23 | K14: 2774334.23 | L14: 2774334.23 | M14: 2774334.23 | N14: 2774334.23 | O14: 2774334.23 | P14: 2774334.23 | Q14: 2774334.23 | R14: 2774334.23 | S14: 2774334.23 | T14: 2774334.23 | U14: 2774334.23 | V14: 2774334.23 | W14: 2774334.23
B15: =Assumptions!$J$5 -> SC - ORTP | C15: =Assumptions!J15 -> 376 | D15: =$H$31*12*1000*$C15 -> 2773880.592 | E15: =$H$31*12*1000*$C15 -> 2773880.592 | F15: 2773880.592 | G15: 2773880.592 | H15: 2773880.592 | I15: 2773880.592 | J15: 2773880.592 | K15: 2773880.592 | L15: 2773880.592 | M15: 2773880.592 | N15: 2773880.592 | O15: 2773880.592 | P15: 2773880.592 | Q15: 2773880.592 | R15: 2773880.592 | S15: 2773880.592 | T15: 2773880.592 | U15: 2773880.592 | V15: 2773880.592 | W15: 2773880.592
B16: =Assumptions!$K$5 -> Onshore Wind - ORTP | C16: =Assumptions!K15 -> 82.5 | D16: =$H$32*12*1000*$C16 -> 410920.2405 | E16: =$H$32*12*1000*$C16 -> 410920.2405 | F16: 410920.2405 | G16: 410920.2405 | H16: 410920.2405 | I16: 410920.2405 | J16: 410920.2405 | K16: 410920.2405 | L16: 410920.2405 | M16: 410920.2405 | N16: 410920.2405 | O16: 410920.2405 | P16: 410920.2405 | Q16: 410920.2405 | R16: 410920.2405 | S16: 410920.2405 | T16: 410920.2405 | U16: 410920.2405 | V16: 410920.2405 | W16: 410920.2405
B17: =Assumptions!$L$5 -> Offshore Wind - ORTP | C17: =Assumptions!L15 -> 800 | D17: =$H$33*12*1000*$C17 -> 3984681.12 | E17: =$H$33*12*1000*$C17 -> 3984681.12 | F17: 3984681.12 | G17: 3984681.12 | H17: 3984681.12 | I17: 3984681.12 | J17: 3984681.12 | K17: 3984681.12 | L17: 3984681.12 | M17: 3984681.12 | N17: 3984681.12 | O17: 3984681.12 | P17: 3984681.12 | Q17: 3984681.12 | R17: 3984681.12 | S17: 3984681.12 | T17: 3984681.12 | U17: 3984681.12 | V17: 3984681.12 | W17: 3984681.12
B18: =Assumptions!$M$5 -> Solar - ORTP | C18: =Assumptions!M15 -> 20 | D18: =$H$34*12*1000*$C18 -> 99617.028 | E18: =$H$34*12*1000*$C18 -> 99617.028 | F18: 99617.028 | G18: 99617.028 | H18: 99617.028 | I18: 99617.028 | J18: 99617.028 | K18: 99617.028 | L18: 99617.028 | M18: 99617.028 | N18: 99617.028 | O18: 99617.028 | P18: 99617.028 | Q18: 99617.028 | R18: 99617.028 | S18: 99617.028 | T18: 99617.028 | U18: 99617.028 | V18: 99617.028 | W18: 99617.028
B19: =Assumptions!$N$5 -> Battery - ORTP | C19: =Assumptions!N15 -> 150 | D19: =$H$35*12*1000*$C19 -> 747127.71 | E19: =$H$35*12*1000*$C19 -> 747127.71 | F19: 747127.71 | G19: 747127.71 | H19: 747127.71 | I19: 747127.71 | J19: 747127.71 | K19: 747127.71 | L19: 747127.71 | M19: 747127.71 | N19: 747127.71 | O19: 747127.71 | P19: 747127.71 | Q19: 747127.71 | R19: 747127.71 | S19: 747127.71 | T19: 747127.71 | U19: 747127.71 | V19: 747127.71 | W19: 747127.71
B20: =Assumptions!$O$5 -> Co-located Resource - ORTP | C20: =Assumptions!O15 -> 10 | D20: =$H$36*12*1000*$C20 -> 49808.514 | E20: =$H$36*12*1000*$C20 -> 49808.514 | F20: 49808.514 | G20: 49808.514 | H20: 49808.514 | I20: 49808.514 | J20: 49808.514 | K20: 49808.514 | L20: 49808.514 | M20: 49808.514 | N20: 49808.514 | O20: 49808.514 | P20: 49808.514 | Q20: 49808.514 | R20: 49808.514 | S20: 49808.514 | T20: 49808.514 | U20: 49808.514 | V20: 49808.514 | W20: 49808.514
B23: Pay for Performance | D23: [H] | E23: [PPR] | F23: [A] | G23: [Br]
B24: Technology | D24: Scarcity Hours at Criteria | E24: Performance Payment Rate | F24: Average Actual Performance | G24: Average Balancing Ratio | H24: Net Performance Payments
D25: hrs | E25: $/mWh | F25: % | G25: % | H25: $/kW-mo
D26: [1] | E26: [2] | F26: [3] | G26: [4] | H26: [5]
B27: Combined Cycle | D27: 15.3 | E27: 5455 | F27: 0.9277 | G27: 0.852 | H27: =(D27*E27*(F27-G27))/1000/12 -> 0.5265029625 | I27: years 1 - 20
B28: Simple Cycle | D28: 15.3 | E28: 5455 | F28: 0.98 | G28: 0.852 | H28: =(D28*E28*(F28-G28))/1000/12 -> 0.890256
B29: Aero | D29: 15.3 | E29: 5455 | F29: =F28 -> 0.98 | G29: 0.852 | H29: =(D29*E29*(F29-G29))/1000/12 -> 0.890256
B30: Combined Cycle - ORTP | D30: 8.4 | E30: 5455 | F30: 0.9277 | G30: 0.819 | H30: =(D30*E30*(F30-G30))/1000/12 -> 0.41507095
B31: Simple Cycle - ORTP | D31: 8.4 | E31: 5455 | F31: =F29 -> 0.98 | G31: 0.819 | H31: =(D31*E31*(F31-G31))/1000/12 -> 0.6147785
B32: Onshore Wind - ORTP | D32: 8.4 | E32: 5455 | F32: 0.9277 | G32: 0.819 | H32: 0.41507095
B33: Offshore Wind | D33: 8.4 | E33: 5455 | F33: 0.9277 | G33: 0.819 | H33: =(D33*E33*(F33-G33))/1000/12 -> 0.41507095
B34: Solar | D34: 8.4 | E34: 5455 | F34: 0.9277 | G34: 0.819 | H34: 0.41507095
B35: Battery | D35: 8.4 | E35: 5455 | F35: 0.9277 | G35: 0.819 | H35: 0.41507095
B36: Co-located Resource (Sm) | D36: 8.4 | E36: 5455 | F36: 0.9277 | G36: 0.819 | H36: 0.41507095
B40: NOTES (IN PROCESS)
B41: [1] - ISO-NE values
B42: [2] - Placeholder value - to be updated
B43: [3] - Placeholder values - to be updated
B44: [4] - ISO-NE values
B45: [5] - ([1] x [2] x ([3] - [4]) / 1000 / 12

Sheet Scarcity
B1: Scarcity Adder
B3: Technology | C3: ='Controls & Results'!D8 -> Solar - ORTP
B5: Year | D5: 2025 | E5: =D5+1 -> 2026 | F5: =E5+1 -> 2027 | G5: 2028 | H5: 2029 | I5: 2030 | J5: 2031 | K5: 2032 | L5: 2033 | M5: 2034 | N5: 2035 | O5: 2036 | P5: 2037 | Q5: 2038 | R5: 2039 | S5: 2040 | T5: 2041 | U5: 2042 | V5: 2043 | W5: 2044
B6: ICAP | C6: ICAP: 2025$ | D6: =D7/(1+Assumptions!$D$36)^(D5-2025) -> 155853.6 | E6: =E7/(1+Assumptions!$D$36)^(E5-2025) -> 152797.6471 | F6: =F7/(1+Assumptions!$D$36)^(F5-2025) -> 149801.6148 | G6: =G7/(1+Assumptions!$D$36)^(G5-2025) -> 146864.3282 | H6: =H7/(1+Assumptions!$D$36)^(H5-2025) -> 143984.6355 | I6: =I7/(1+Assumptions!$D$36)^(I5-2025) -> 141161.4073 | J6: =J7/(1+Assumptions!$D$36)^(J5-2025) -> 138393.5366 | K6: =K7/(1+Assumptions!$D$36)^(K5-2025) -> 135679.9379 | L6: =L7/(1+Assumptions!$D$36)^(L5-2025) -> 133019.5469 | M6: =M7/(1+Assumptions!$D$36)^(M5-2025) -> 130411.3205 | N6: =N7/(1+Assumptions!$D$36)^(N5-2025) -> 127854.2358 | O6: =O7/(1+Assumptions!$D$36)^(O5-2025) -> 125347.29 | P6: =P7/(1+Assumptions!$D$36)^(P5-2025) -> 122889.5 | Q6: =Q7/(1+Assumptions!$D$36)^(Q5-2025) -> 120479.902 | R6: =R7/(1+Assumptions!$D$36)^(R5-2025) -> 118117.5509 | S6: =S7/(1+Assumptions!$D$36)^(S5-2025) -> 115801.5205 | T6: =T7/(1+Assumptions!$D$36)^(T5-2025) -> 113530.9025 | U6: =U7/(1+Assumptions!$D$36)^(U5-2025) -> 111304.8063 | V6: =V7/(1+Assumptions!$D$36)^(V5-2025) -> 109122.3592 | W6: =W7/(1+Assumptions!$D$36)^(W5-2025) -> 106982.7051
C7: ICAP: Nominal | D7: =OFFSET(D11,MATCH($C$3,$B$11:$B$20,0)-1,0) -> 155853.6 | E7: 155853.6 | F7: 155853.6 | G7: 155853.6 | H7: 155853.6 | I7: 155853.6 | J7: 155853.6 | K7: 155853.6 | L7: 155853.6 | M7: 155853.6 | N7: 155853.6 | O7: 155853.6 | P7: 155853.6 | Q7: 155853.6 | R7: 155853.6 | S7: 155853.6 | T7: 155853.6 | U7: 155853.6 | V7: 155853.6 | W7: 155853.6
C10: Plant Capacity (MW)
B11: =Assumptions!$F$5 -> CC - CONE | C11: =Assumptions!F15 -> 557 | D11: =$G$27*12*1000*$C11 -> 7905952.17 | E11: 7905952.17 | F11: 7905952.17 | G11: 7905952.17 | H11: 7905952.17 | I11: 7905952.17 | J11: 7905952.17 | K11: 7905952.17 | L11: 7905952.17 | M11: 7905952.17 | N11: 7905952.17 | O11: 7905952.17 | P11: 7905952.17 | Q11: 7905952.17 | R11: 7905952.17 | S11: 7905952.17 | T11: 7905952.17 | U11: 7905952.17 | V11: 7905952.17 | W11: 7905952.17
B12: =Assumptions!$G$5 -> SC - CONE | C12: =Assumptions!G15 -> 376 | D12: =$G$28*12*1000*$C12 -> 5637744 | E12: 5637744 | F12: 5637744 | G12: 5637744 | H12: 5637744 | I12: 5637744 | J12: 5637744 | K12: 5637744 | L12: 5637744 | M12: 5637744 | N12: =$G$28*12*1000*$C12 -> 5637744 | O12: 5637744 | P12: 5637744 | Q12: 5637744 | R12: 5637744 | S12: 5637744 | T12: 5637744 | U12: 5637744 | V12: 5637744 | W12: 5637744
B13: =Assumptions!$H$5 -> Aero - CONE | C13: =Assumptions!H15 -> 98 | D13: =$G$29*12*1000*$C13 -> 1469412 | E13: =$G$29*12*1000*$C13 -> 1469412 | F13: 1469412 | G13: 1469412 | H13: 1469412 | I13: 1469412 | J13: 1469412 | K13: 1469412 | L13: 1469412 | M13: 1469412 | N13: 1469412 | O13: 1469412 | P13: 1469412 | Q13: 1469412 | R13: 1469412 | S13: 1469412 | T13: 1469412 | U13: 1469412 | V13: 1469412 | W13: 1469412
B14: =Assumptions!$I$5 -> CC - ORTP | C14: =Assumptions!I15 -> 557 | D14: =$G$30*12*1000*$C14 -> 4340522.76 | E14: =$G$30*12*1000*$C14 -> 4340522.76 | F14: 4340522.76 | G14: 4340522.76 | H14: 4340522.76 | I14: 4340522.76 | J14: 4340522.76 | K14: 4340522.76 | L14: 4340522.76 | M14: 4340522.76 | N14: 4340522.76 | O14: 4340522.76 | P14: 4340522.76 | Q14: 4340522.76 | R14: 4340522.76 | S14: 4340522.76 | T14: 4340522.76 | U14: 4340522.76 | V14: 4340522.76 | W14: 4340522.76
B15: =Assumptions!$J$5 -> SC - ORTP | C15: =Assumptions!J15 -> 376 | D15: =$G$31*12*1000*$C15 -> 3095232 | E15: =$G$31*12*1000*$C15 -> 3095232 | F15: 3095232 | G15: 3095232 | H15: 3095232 | I15: 3095232 | J15: 3095232 | K15: 3095232 | L15: 3095232 | M15: 3095232 | N15: 3095232 | O15: 3095232 | P15: 3095232 | Q15: 3095232 | R15: 3095232 | S15: 3095232 | T15: 3095232 | U15: 3095232 | V15: 3095232 | W15: 3095232
B16: =Assumptions!$K$5 -> Onshore Wind - ORTP | C16: =Assumptions!K15 -> 82.5 | D16: =$G$32*12*1000*$C16 -> 642896.1 | E16: 642896.1 | F16: 642896.1 | G16: 642896.1 | H16: 642896.1 | I16: 642896.1 | J16: 642896.1 | K16: 642896.1 | L16: 642896.1 | M16: 642896.1 | N16: 642896.1 | O16: 642896.1 | P16: 642896.1 | Q16: 642896.1 | R16: 642896.1 | S16: 642896.1 | T16: 642896.1 | U16: 642896.1 | V16: 642896.1 | W16: 642896.1
B17: =Assumptions!$L$5 -> Offshore Wind - ORTP | C17: =Assumptions!L15 -> 800 | D17: =$G$33*12*1000*$C17 -> 6234144 | E17: 6234144 | F17: 6234144 | G17: 6234144 | H17: 6234144 | I17: 6234144 | J17: 6234144 | K17: 6234144 | L17: 6234144 | M17: 6234144 | N17: 6234144 | O17: 6234144 | P17: 6234144 | Q17: 6234144 | R17: 6234144 | S17: 6234144 | T17: 6234144 | U17: 6234144 | V17: 6234144 | W17: 6234144
B18: =Assumptions!$M$5 -> Solar - ORTP | C18: =Assumptions!M15 -> 20 | D18: =$G$34*12*1000*$C18 -> 155853.6 | E18: 155853.6 | F18: 155853.6 | G18: 155853.6 | H18: 155853.6 | I18: 155853.6 | J18: 155853.6 | K18: 155853.6 | L18: 155853.6 | M18: 155853.6 | N18: 155853.6 | O18: 155853.6 | P18: 155853.6 | Q18: 155853.6 | R18: 155853.6 | S18: 155853.6 | T18: 155853.6 | U18: 155853.6 | V18: 155853.6 | W18: 155853.6
B19: =Assumptions!$N$5 -> Battery - ORTP | C19: =Assumptions!N15 -> 150 | D19: =$G$35*12*1000*$C19 -> 1168902 | E19: 1168902 | F19: 1168902 | G19: 1168902 | H19: 1168902 | I19: 1168902 | J19: 1168902 | K19: 1168902 | L19: 1168902 | M19: 1168902 | N19: 1168902 | O19: 1168902 | P19: 1168902 | Q19: 1168902 | R19: 1168902 | S19: 1168902 | T19: 1168902 | U19: 1168902 | V19: 1168902 | W19: 1168902
B20: =Assumptions!$O$5 -> Co-located Resource - ORTP | C20: =Assumptions!O15 -> 10 | D20: =$G$36*12*1000*$C20 -> 77926.8 | E20: 77926.8 | F20: 77926.8 | G20: 77926.8 | H20: 77926.8 | I20: 77926.8 | J20: 77926.8 | K20: 77926.8 | L20: 77926.8 | M20: 77926.8 | N20: 77926.8 | O20: 77926.8 | P20: 77926.8 | Q20: 77926.8 | R20: 77926.8 | S20: 77926.8 | T20: 77926.8 | U20: 77926.8 | V20: 77926.8 | W20: 77926.8
B23: Scarcity | D23: [H]
B24: Technology | D24: Scarcity Hours at Criteria | E24: Reserve Constraint Penalty Factor | F24: Forced Outage Rate | G24: Energy Market Scarcity Revenue
D25: hrs | E25: $/mWh | F25: % | G25: $/kW-mo
D26: [1] | E26: [2] | F26: [3] | G26: [4]
B27: Combined Cycle | D27: 15.3 | E27: 1000 | F27: 0.9277 | G27: =(D27*E27*F27)/1000/12 -> 1.1828175
B28: Simple Cycle | D28: 15.3 | E28: 1000 | F28: 0.98 | G28: =(D28*E28*F28)/1000/12 -> 1.2495
B29: Aero | D29: 15.3 | E29: 1000 | F29: =F28 -> 0.98 | G29: 1.2495
B30: Combined Cycle - ORTP | D30: 8.4 | E30: 1000 | F30: 0.9277 | G30: 0.64939
B31: Simple Cycle - ORTP | D31: 8.4 | E31: 1000 | F31: =F28 -> 0.98 | G31: 0.686
B32: Onshore Wind - ORTP | D32: 8.4 | E32: 1000 | F32: 0.9277 | G32: 0.64939
B33: Offshore Wind | D33: 8.4 | E33: 1000 | F33: 0.9277 | G33: 0.64939
B34: Solar | D34: 8.4 | E34: 1000 | F34: 0.9277 | G34: 0.64939
B35: Battery | D35: 8.4 | E35: 1000 | F35: 0.9277 | G35: 0.64939
B36: Co-located Resource | D36: 8.4 | E36: 1000 | F36: 0.9277 | G36: 0.64939
B39: NOTES [IN PROCESS]:
B40: [1] - ISO-NE values
B41: [2] - Placeholder value - to be updated
B42: [2] - Placeholder values - to be updated
B43: [4] - [1] x [2] x [3] / 1000 / 12

Sheet MACRS
B1: MACRS
B3: Technology | C3: ='Controls & Results'!D8 -> Solar - ORTP
B5: Depreciation Schedule | C5: =Assumptions!D26 -> 5yrMACRS
C8: Year | D8: 2025 | E8: =D8+1 -> 2026 | F8: =E8+1 -> 2027 | G8: 2028 | H8: 2029 | I8: 2030 | J8: 2031 | K8: 2032 | L8: 2033 | M8: 2034 | N8: 2035 | O8: 2036 | P8: 2037 | Q8: 2038 | R8: 2039 | S8: 2040 | T8: 2041 | U8: 2042 | V8: 2043 | W8: 2044 | X8: 2045 | Y8: 2046 | Z8: 2047 | AA8: 2048 | AB8: 2049 | AC8: 2050 | AD8: 2051 | AE8: 2052 | AF8: 2053 | AG8: 2054
C9: Depreciation Schedule | D9: =OFFSET(D11,MATCH($C$5,$C$12:$C$17,0),0) -> 0.2 | E9: 0.32 | F9: 0.192 | G9: 0.1152 | H9: 0.1152 | I9: 0.0576 | J9: 0 | K9: 0 | L9: 0 | M9: 0 | N9: 0 | O9: 0 | P9: 0 | Q9: 0 | R9: 0 | S9: 0 | T9: 0 | U9: 0 | V9: 0 | W9: 0 | X9: 0 | Y9: 0 | Z9: 0 | AA9: 0 | AB9: 0 | AC9: 0 | AD9: 0 | AE9: 0 | AF9: 0 | AG9: 0
D11: 1 | E11: 2 | F11: 3 | G11: 4 | H11: 5 | I11: 6 | J11: 7 | K11: 8 | L11: 9 | M11: 10 | N11: 11 | O11: 12 | P11: 13 | Q11: 14 | R11: 15 | S11: 16 | T11: 17 | U11: 18 | V11: 19 | W11: 20 | X11: 21 | Y11: 22 | Z11: 23 | AA11: 24 | AB11: 25 | AC11: 26 | AD11: 27 | AE11: 28 | AF11: 29 | AG11: 30
C12: 3yrMACRS | D12: 0.3333 | E12: 0.4445 | F12: 0.1481 | G12: 0.0741 | H12: 0 | I12: 0 | J12: 0 | K12: 0 | L12: 0 | M12: 0 | N12: 0 | O12: 0 | P12: 0 | Q12: 0 | R12: 0 | S12: 0 | T12: 0 | U12: 0 | V12: 0 | W12: 0 | X12: 0 | Y12: 0 | Z12: 0 | AA12: 0 | AB12: 0 | AC12: 0 | AD12: 0 | AE12: 0 | AF12: 0 | AG12: 0 | AH12: =SUM(D12:AG12) -> 1
B13: Wind, Solar, Co-located | C13: 5yrMACRS | D13: 0.2 | E13: 0.32 | F13: 0.192 | G13: 0.1152 | H13: 0.1152 | I13: 0.0576 | J13: 0 | K13: 0 | L13: 0 | M13: 0 | N13: 0 | O13: 0 | P13: 0 | Q13: 0 | R13: 0 | S13: 0 | T13: 0 | U13: 0 | V13: 0 | W13: 0 | X13: 0 | Y13: 0 | Z13: 0 | AA13: 0 | AB13: 0 | AC13: 0 | AD13: 0 | AE13: 0 | AF13: 0 | AG13: 0 | AH13: 1
B14: Battery | C14: 7yrMACRS | D14: 0.1429 | E14: 0.2449 | F14: 0.1749 | G14: 0.1249 | H14: 0.0893 | I14: 0.0892 | J14: 0.0893 | K14: 0.0446 | L14: 0 | M14: 0 | N14: 0 | O14: 0 | P14: 0 | Q14: 0 | R14: 0 | S14: 0 | T14: 0 | U14: 0 | V14: 0 | W14: 0 | X14: 0 | Y14: 0 | Z14: 0 | AA14: 0 | AB14: 0 | AC14: 0 | AD14: 0 | AE14: 0 | AF14: 0 | AG14: 0 | AH14: 1
C15: 10yrMACRS | D15: 0.1 | E15: 0.18 | F15: 0.144 | G15: 0.1152 | H15: 0.0922 | I15: 0.0737 | J15: 0.0655 | K15: 0.0655 | L15: 0.0656 | M15: 0.0655 | N15: 0.0328 | O15: 0 | P15: 0 | Q15: 0 | R15: 0 | S15: 0 | T15: 0 | U15: 0 | V15: 0 | W15: 0 | X15: 0 | Y15: 0 | Z15: 0 | AA15: 0 | AB15: 0 | AC15: 0 | AD15: 0 | AE15: 0 | AF15: 0 | AG15: 0 | AH15: 1
B16: Simple Cycle, Aero | C16: 15yrMACRS | D16: 0.05 | E16: 0.095 | F16: 0.0855 | G16: 0.077 | H16: 0.0693 | I16: 0.0623 | J16: 0.059 | K16: 0.059 | L16: 0.0591 | M16: 0.059 | N16: =L16 -> 0.0591 | O16: =M16 -> 0.059 | P16: =N16 -> 0.0591 | Q16: =O16 -> 0.059 | R16: =P16 -> 0.0591 | S16: 0.0295 | T16: 0 | U16: 0 | V16: 0 | W16: 0 | X16: 0 | Y16: 0 | Z16: 0 | AA16: 0 | AB16: 0 | AC16: 0 | AD16: 0 | AE16: 0 | AF16: 0 | AG16: 0 | AH16: =SUM(D16:AG16) -> 1
B17: Combined Cycle | C17: 20yrMACRS | D17: 0.0375 | E17: 0.07219 | F17: 0.06677 | G17: 0.06177 | H17: 0.05713 | I17: 0.05285 | J17: 0.04888 | K17: 0.04522 | L17: 0.04462 | M17: 0.04461 | N17: 0.04462 | O17: 0.04461 | P17: 0.04462 | Q17: 0.04461 | R17: 0.04462 | S17: 0.04461 | T17: 0.04462 | U17: 0.04461 | V17: 0.04462 | W17: 0.04461 | X17: 0.02231 | Y17: 0 | Z17: 0 | AA17: 0 | AB17: 0 | AC17: 0 | AD17: 0 | AE17: 0 | AF17: 0 | AG17: 0 | AH17: =SUM(D17:AG17) -> 1

Sheet Depreciation
B1: Depreciation
C2: 2025 | D2: =C2+1 -> 2026 | E2: =D2+1 -> 2027 | F2: 2028 | G2: 2029 | H2: 2030 | I2: 2031 | J2: 2032 | K2: 2033 | L2: 2034 | M2: 2035 | N2: 2036 | O2: 2037 | P2: 2038 | Q2: 2039 | R2: 2040 | S2: 2041 | T2: =S2+1 -> 2042 | U2: 2043 | V2: 2044
B3: Depreciation Rate | C3: =MACRS!D9 -> 0.2 | D3: =MACRS!E9 -> 0.32 | E3: =MACRS!F9 -> 0.192 | F3: =MACRS!G9 -> 0.1152 | G3: =MACRS!H9 -> 0.1152 | H3: =MACRS!I9 -> 0.0576 | I3: =MACRS!J9 -> 0 | J3: =MACRS!K9 -> 0 | K3: =MACRS!L9 -> 0 | L3: =MACRS!M9 -> 0 | M3: =MACRS!N9 -> 0 | N3: =MACRS!O9 -> 0 | O3: =MACRS!P9 -> 0 | P3: =MACRS!Q9 -> 0 | Q3: =MACRS!R9 -> 0 | R3: =MACRS!S9 -> 0 | S3: =MACRS!T9 -> 0 | T3: =MACRS!U9 -> 0 | U3: =MACRS!V9 -> 0 | V3: =MACRS!W9 -> 0
B5: CAPEX SCHEDULE | C5: 0 | D5: 0 | E5: 0 | F5: 0 | G5: 0 | H5: 0 | I5: 0 | J5: 0 | K5: 0 | L5: 0 | M5: 0 | N5: 0 | O5: 0 | P5: 0 | Q5: 0 | R5: 0 | S5: 0 | T5: 0 | U5: 0 | V5: 0
B7: Beginning Plant (2025$) | C7: ='Construction CF'!B48 -> 31375235.79
B8: ITC Reduced Plant Basis | C8: =C7*(1-Assumptions!$D$21/2) -> 29806474
B9: Bonus Depreciation | C9: =Assumptions!$D$27*Depreciation!C8 -> 11922589.6
B10: Beginning Plant MACRS | C10: =C7-C9 -> 19452646.19
A12: 1 | B12: Year 1 Additions | C12: =C5 -> 0
B13: Tax Depreciation | C13: =($C10+C12)*C$3 -> 3890529.238 | D13: =($C10+D12)*D$3 -> 6224846.78 | E13: 3734908.068 | F13: 2240944.841 | G13: 2240944.841 | H13: 1120472.42 | I13: 0 | J13: 0 | K13: 0 | L13: 0 | M13: 0 | N13: 0 | O13: 0 | P13: 0 | Q13: 0 | R13: 0 | S13: 0 | T13: 0 | U13: 0 | V13: 0
A15: 2 | B15: ="Year "&$A15&" Additions" -> Year 2 Additions | C15: 0 | D15: =D$5 -> 0
B16: Tax Depreciation | C16: 0 | D16: =$D15*C$3 -> 0 | E16: =$D15*D$3 -> 0 | F16: =$D15*E$3 -> 0 | G16: =$D15*F$3 -> 0 | H16: =$D15*G$3 -> 0 | I16: =$D15*H$3 -> 0 | J16: =$D15*I$3 -> 0 | K16: 0 | L16: 0 | M16: 0 | N16: 0 | O16: 0 | P16: 0 | Q16: 0 | R16: 0 | S16: 0 | T16: 0 | U16: 0 | V16: =$D15*U$3 -> 0
A18: =A15+1 -> 3 | B18: ="Year "&$A18&" Additions" -> Year 3 Additions | C18: 0 | D18: 0 | E18: =E$5 -> 0
B19: Tax Depreciation | C19: 0 | D19: 0 | E19: =$E18*C$3 -> 0 | F19: =$E18*D$3 -> 0 | G19: 0 | H19: 0 | I19: 0 | J19: 0 | K19: 0 | L19: 0 | M19: 0 | N19: 0 | O19: 0 | P19: 0 | Q19: 0 | R19: 0 | S19: 0 | T19: 0 | U19: 0 | V19: 0
A21: =A18+1 -> 4 | B21: ="Year "&$A21&" Additions" -> Year 4 Additions | C21: 0 | D21: 0 | E21: 0 | F21: =F$5 -> 0
B22: Tax Depreciation | C22: 0 | D22: 0 | E22: 0 | F22: =$F21*C$3 -> 0 | G22: =$F21*D$3 -> 0 | H22: 0 | I22: 0 | J22: 0 | K22: 0 | L22: 0 | M22: 0 | N22: 0 | O22: 0 | P22: 0 | Q22: 0 | R22: 0 | S22: 0 | T22: 0 | U22: 0 | V22: =$F21*S$3 -> 0
A24: =A21+1 -> 5 | B24: ="Year "&$A24&" Additions" -> Year 5 Additions | C24: 0 | D24: 0 | E24: 0 | F24: 0 | G24: =G$5 -> 0
B25: Tax Depreciation | C25: 0 | D25: 0 | E25: 0 | F25: 0 | G25: =$G24*C$3 -> 0 | H25: =$G24*D$3 -> 0 | I25: 0 | J25: 0 | K25: 0 | L25: 0 | M25: 0 | N25: 0 | O25: 0 | P25: 0 | Q25: 0 | R25: 0 | S25: 0 | T25: 0 | U25: 0 | V25: 0
A27: =A24+1 -> 6 | B27: ="Year "&$A27&" Additions" -> Year 6 Additions | C27: 0 | D27: 0 | E27: 0 | F27: 0 | G27: 0 | H27: =H$5 -> 0
B28: Tax Depreciation | C28: 0 | D28: 0 | E28: 0 | F28: 0 | G28: 0 | H28: =$H27*C$3 -> 0 | I28: =$H27*D$3 -> 0 | J28: 0 | K28: 0 | L28: 0 | M28: 0 | N28: 0 | O28: 0 | P28: 0 | Q28: 0 | R28: 0 | S28: 0 | T28: 0 | U28: 0 | V28: 0
A30: =A27+1 -> 7 | B30: ="Year "&$A30&" Additions" -> Year 7 Additions | C30: 0 | D30: 0 | E30: 0 | F30: 0 | G30: 0 | H30: 0 | I30: =I$5 -> 0
B31: Tax Depreciation | C31: 0 | D31: 0 | E31: 0 | F31: 0 | G31: 0 | H31: 0 | I31: =$I30*C$3 -> 0 | J31: 0 | K31: =$I30*E$3 -> 0 | L31: 0 | M31: 0 | N31: 0 | O31: =$I30*I$3 -> 0 | P31: 0 | Q31: 0 | R31: 0 | S31: 0 | T31: 0 | U31: 0 | V31: 0
A33: =A30+1 -> 8 | B33: ="Year "&$A33&" Additions" -> Year 8 Additions | C33: 0 | D33: 0 | E33: 0 | F33: 0 | G33: 0 | H33: 0 | I33: 0 | J33: =J$5 -> 0
B34: Tax Depreciation | C34: 0 | D34: 0 | E34: 0 | F34: 0 | G34: 0 | H34: 0 | I34: 0 | J34: =$J33*C$3 -> 0 | K34: =$J33*D$3 -> 0 | L34: 0 | M34: 0 | N34: 0 | O34: 0 | P34: 0 | Q34: 0 | R34: 0 | S34: 0 | T34: 0 | U34: 0 | V34: 0
A36: =A33+1 -> 9 | B36: ="Year "&$A36&" Additions" -> Year 9 Additions | C36: 0 | D36: 0 | E36: 0 | F36: 0 | G36: 0 | H36: 0 | I36: 0 | J36: 0 | K36: =K$5 -> 0
B37: Tax Depreciation | C37: 0 | D37: 0 | E37: 0 | F37: 0 | G37: 0 | H37: 0 | I37: 0 | J37: 0 | K37: =$K36*C$3 -> 0 | L37: =$K36*D$3 -> 0 | M37: 0 | N37: 0 | O37: 0 | P37: 0 | Q37: 0 | R37: 0 | S37: 0 | T37: 0 | U37: 0 | V37: 0
A39: =A36+1 -> 10 | B39: ="Year "&$A39&" Additions" -> Year 10 Additions | C39: 0 | D39: 0 | E39: 0 | F39: 0 | G39: 0 | H39: 0 | I39: 0 | J39: 0 | K39: 0 | L39: =L$5 -> 0
B40: Tax Depreciation | C40: 0 | D40: 0 | E40: 0 | F40: 0 | G40: 0 | H40: 0 | I40: 0 | J40: 0 | K40: 0 | L40: =$L39*C$3 -> 0 | M40: =$L39*D$3 -> 0 | N40: 0 | O40: 0 | P40: 0 | Q40: 0 | R40: 0 | S40: 0 | T40: 0 | U40: 0 | V40: 0
A42: =A39+1 -> 11 | B42: ="Year "&$A42&" Additions" -> Year 11 Additions | C42: 0 | D42: 0 | E42: 0 | F42: 0 | G42: 0 | H42: 0 | I42: 0 | J42: 0 | K42: 0 | L42: 0 | M42: =M$5 -> 0
B43: Tax Depreciation | C43: 0 | D43: 0 | E43: 0 | F43: 0 | G43: 0 | H43: 0 | I43: 0 | J43: 0 | K43: 0 | L43: 0 | M43: =$M42*C$3 -> 0 | N43: =$M42*D$3 -> 0 | O43: 0 | P43: 0 | Q43: 0 | R43: 0 | S43: 0 | T43: 0 | U43: 0 | V43: 0
A45: =A42+1 -> 12 | B45: ="Year "&$A45&" Additions" -> Year 12 Additions | C45: 0 | D45: 0 | E45: 0 | F45: 0 | G45: 0 | H45: 0 | I45: 0 | J45: 0 | K45: 0 | L45: 0 | M45: 0 | N45: =N$5 -> 0
B46: Tax Depreciation | C46: 0 | D46: 0 | E46: 0 | F46: 0 | G46: 0 | H46: 0 | I46: 0 | J46: 0 | K46: 0 | L46: 0 | M46: 0 | N46: =$N45*C$3 -> 0 | O46: =$N45*D$3 -> 0 | P46: 0 | Q46: 0 | R46: 0 | S46: 0 | T46: 0 | U46: 0 | V46: 0
A48: =A45+1 -> 13 | B48: ="Year "&$A48&" Additions" -> Year 13 Additions | C48: 0 | D48: 0 | E48: 0 | F48: 0 | G48: 0 | H48: 0 | I48: 0 | J48: 0 | K48: 0 | L48: 0 | M48: 0 | N48: 0 | O48: =O$5 -> 0
B49: Tax Depreciation | C49: 0 | D49: 0 | E49: 0 | F49: 0 | G49: 0 | H49: 0 | I49: 0 | J49: 0 | K49: 0 | L49: 0 | M49: 0 | N49: 0 | O49: =$O48*C$3 -> 0 | P49: =$O48*D$3 -> 0 | Q49: 0 | R49: 0 | S49: 0 | T49: 0 | U49: 0 | V49: 0
A51: =A48+1 -> 14 | B51: ="Year "&$A51&" Additions" -> Year 14 Additions | C51: 0 | D51: 0 | E51: 0 | F51: 0 | G51: 0 | H51: 0 | I51: 0 | J51: 0 | K51: 0 | L51: 0 | M51: 0 | N51: 0 | O51: 0 | P51: =P$5 -> 0
B52: Tax Depreciation | C52: 0 | D52: 0 | E52: 0 | F52: 0 | G52: 0 | H52: 0 | I52: 0 | J52: 0 | K52: 0 | L52: 0 | M52: 0 | N52: 0 | O52: 0 | P52: =$P51*C$3 -> 0 | Q52: =$P51*D$3 -> 0 | R52: 0 | S52: 0 | T52: 0 | U52: 0 | V52: 0
A54: =A51+1 -> 15 | B54: ="Year "&$A54&" Additions" -> Year 15 Additions | C54: 0 | D54: 0 | E54: 0 | F54: 0 | G54: 0 | H54: 0 | I54: 0 | J54: 0 | K54: 0 | L54: 0 | M54: 0 | N54: 0 | O54: 0 | P54: 0 | Q54: =Q$5 -> 0
B55: Tax Depreciation | C55: 0 | D55: 0 | E55: 0 | F55: 0 | G55: 0 | H55: 0 | I55: 0 | J55: 0 | K55: 0 | L55: 0 | M55: 0 | N55: 0 | O55: 0 | P55: 0 | Q55: =$Q54*C$3 -> 0 | R55: =$Q54*D$3 -> 0 | S55: 0 | T55: 0 | U55: 0 | V55: 0
A57: =A54+1 -> 16 | B57: ="Year "&$A57&" Additions" -> Year 16 Additions | C57: 0 | D57: 0 | E57: 0 | F57: 0 | G57: 0 | H57: 0 | I57: 0 | J57: 0 | K57: 0 | L57: 0 | M57: 0 | N57: 0 | O57: 0 | P57: 0 | Q57: 0 | R57: =R$5 -> 0
B58: Tax Depreciation | C58: 0 | D58: 0 | E58: 0 | F58: 0 | G58: 0 | H58: 0 | I58: 0 | J58: 0 | K58: 0 | L58: 0 | M58: 0 | N58: 0 | O58: 0 | P58: 0 | Q58: 0 | R58: =$R57*C$3 -> 0 | S58: =$R57*D$3 -> 0 | T58: 0 | U58: 0 | V58: 0
A60: =A57+1 -> 17 | B60: ="Year "&$A60&" Additions" -> Year 17 Additions | C60: 0 | D60: 0 | E60: 0 | F60: 0 | G60: 0 | H60: 0 | I60: 0 | J60: 0 | K60: 0 | L60: 0 | M60: 0 | N60: 0 | O60: 0 | P60: 0 | Q60: 0 | R60: 0 | S60: =S$5 -> 0
B61: Tax Depreciation | C61: 0 | D61: 0 | E61: 0 | F61: 0 | G61: 0 | H61: 0 | I61: 0 | J61: 0 | K61: 0 | L61: 0 | M61: 0 | N61: 0 | O61: 0 | P61: 0 | Q61: 0 | R61: 0 | S61: =$S60*C$3 -> 0 | T61: =$S60*D$3 -> 0 | U61: 0 | V61: 0
A63: =A60+1 -> 18 | B63: ="Year "&$A63&" Additions" -> Year 18 Additions | C63: 0 | D63: 0 | E63: 0 | F63: 0 | G63: 0 | H63: 0 | I63: 0 | J63: 0 | K63: 0 | L63: 0 | M63: 0 | N63: 0 | O63: 0 | P63: 0 | Q63: 0 | R63: 0 | S63: 0 | T63: =T$5 -> 0
B64: Tax Depreciation | C64: 0 | D64: 0 | E64: 0 | F64: 0 | G64: 0 | H64: 0 | I64: 0 | J64: 0 | K64: 0 | L64: 0 | M64: 0 | N64: 0 | O64: 0 | P64: 0 | Q64: 0 | R64: 0 | S64: 0 | T64: =$T63*C$3 -> 0 | U64: =$T63*D$3 -> 0 | V64: 0
A66: =A63+1 -> 19 | B66: ="Year "&$A66&" Additions" -> Year 19 Additions | C66: 0 | D66: 0 | E66: 0 | F66: 0 | G66: 0 | H66: 0 | I66: 0 | J66: 0 | K66: 0 | L66: 0 | M66: 0 | N66: 0 | O66: 0 | P66: 0 | Q66: 0 | R66: 0 | S66: 0 | T66: 0 | U66: =U$5 -> 0
B67: Tax Depreciation | C67: 0 | D67: 0 | E67: 0 | F67: 0 | G67: 0 | H67: 0 | I67: 0 | J67: 0 | K67: 0 | L67: 0 | M67: 0 | N67: 0 | O67: 0 | P67: 0 | Q67: 0 | R67: 0 | S67: 0 | T67: 0 | U67: =$U66*C$3 -> 0 | V67: =$U66*D$3 -> 0
A69: =A66+1 -> 20 | B69: ="Year "&$A69&" Additions" -> Year 20 Additions | C69: 0 | D69: 0 | E69: 0 | F69: 0 | G69: 0 | H69: 0 | I69: 0 | J69: 0 | K69: 0 | L69: 0 | M69: 0 | N69: 0 | O69: 0 | P69: 0 | Q69: 0 | R69: 0 | S69: 0 | T69: 0 | U69: 0 | V69: =V$5 -> 0
B70: Tax Depreciation | C70: 0 | D70: 0 | E70: 0 | F70: 0 | G70: 0 | H70: 0 | I70: 0 | J70: 0 | K70: 0 | L70: 0 | M70: 0 | N70: 0 | O70: 0 | P70: 0 | Q70: 0 | R70: 0 | S70: 0 | T70: 0 | U70: 0 | V70: =$V69*C$3 -> 0
B73: 2025$
B74: Depreciation Expense | C74: =SUMIF($B$7:$B$72,"Tax Depreciation",C$7:C$72)+C9 -> 15813118.84 | D74: =SUMIF($B$7:$B$72,"Tax Depreciation",D$7:D$72) -> 6224846.78 | E74: =SUMIF($B$7:$B$72,"Tax Depreciation",E$7:E$72) -> 3734908.068 | F74: 2240944.841 | G74: 2240944.841 | H74: 1120472.42 | I74: 0 | J74: =SUMIF($B$7:$B$72,"Tax Depreciation",J$7:J$72) -> 0 | K74: 0 | L74: 0 | M74: 0 | N74: 0 | O74: 0 | P74: 0 | Q74: 0 | R74: 0 | S74: 0 | T74: 0 | U74: 0 | V74: =SUMIF($B$7:$B$72,"Tax Depreciation",V$7:V$72) -> 0
B75: Gross Plant | C75: =SUMIF($A$12:$A$72,">0",C$12:C$72)+C7 -> 31375235.79 | D75: =SUMIF($A$12:$A$72,">0",D$12:D$72)+C75 -> 31375235.79 | E75: 31375235.79 | F75: 31375235.79 | G75: 31375235.79 | H75: 31375235.79 | I75: 31375235.79 | J75: 31375235.79 | K75: 31375235.79 | L75: 31375235.79 | M75: 31375235.79 | N75: 31375235.79 | O75: 31375235.79 | P75: 31375235.79 | Q75: 31375235.79 | R75: 31375235.79 | S75: 31375235.79 | T75: 31375235.79 | U75: 31375235.79 | V75: 31375235.79
B76: Accumulated Depreciation | C76: =SUM($C$74:C$74) -> 15813118.84 | D76: =SUM($C$74:D$74) -> 22037965.62 | E76: =SUM($C$74:E$74) -> 25772873.69 | F76: =SUM($C$74:F$74) -> 28013818.53 | G76: =SUM($C$74:G$74) -> 30254763.37 | H76: =SUM($C$74:H$74) -> 31375235.79 | I76: =SUM($C$74:I$74) -> 31375235.79 | J76: =SUM($C$74:J$74) -> 31375235.79 | K76: =SUM($C$74:K$74) -> 31375235.79 | L76: =SUM($C$74:L$74) -> 31375235.79 | M76: =SUM($C$74:M$74) -> 31375235.79 | N76: =SUM($C$74:N$74) -> 31375235.79 | O76: =SUM($C$74:O$74) -> 31375235.79 | P76: =SUM($C$74:P$74) -> 31375235.79 | Q76: =SUM($C$74:Q$74) -> 31375235.79 | R76: =SUM($C$74:R$74) -> 31375235.79 | S76: =SUM($C$74:S$74) -> 31375235.79 | T76: =SUM($C$74:T$74) -> 31375235.79 | U76: =SUM($C$74:U$74) -> 31375235.79 | V76: =SUM($C$74:V$74) -> 31375235.79
B77: Net Plant | C77: =C75-C76 -> 15562116.95 | D77: =D75-D76 -> 9337270.171 | E77: 5602362.102 | F77: =F75-F76 -> 3361417.261 | G77: 1120472.42 | H77: 0 | I77: 0 | J77: 0 | K77: 0 | L77: 0 | M77: 0 | N77: 0 | O77: 0 | P77: 0 | Q77: 0 | R77: 0 | S77: 0 | T77: 0 | U77: 0 | V77: 0
B79: Plant Basis for Property Tax Calculation (Gross Plant Less Depreciation) | C79: =C75-(C75*MACRS!D9) -> 25100188.63 | D79: =C79-D75*MACRS!E9 -> 15060113.18 | E79: =D79-E75*MACRS!F9 -> 9036067.907 | F79: =E79-F75*MACRS!G9 -> 5421640.744 | G79: =F79-G75*MACRS!H9 -> 1807213.581 | H79: =G79-H75*MACRS!I9 -> 0 | I79: =H79-I75*MACRS!J9 -> 0 | J79: =I79-J75*MACRS!K9 -> 0 | K79: =J79-K75*MACRS!L9 -> 0 | L79: =K79-L75*MACRS!M9 -> 0 | M79: =L79-M75*MACRS!N9 -> 0 | N79: =M79-N75*MACRS!O9 -> 0 | O79: =N79-O75*MACRS!P9 -> 0 | P79: =O79-P75*MACRS!Q9 -> 0 | Q79: =P79-Q75*MACRS!R9 -> 0 | R79: =Q79-R75*MACRS!S9 -> 0 | S79: =R79-S75*MACRS!T9 -> 0 | T79: =S79-T75*MACRS!U9 -> 0 | U79: =T79-U75*MACRS!V9 -> 0 | V79: =U79-V75*MACRS!W9 -> 0
